{"text_format":"1","workbook":"xlsx","n_sheets":2,"sheets":["Qsc","Line or Route. Direction. Lane"],"not_rendered":{"charts":0,"images":0,"macros":1,"external_links":0,"defined_names":1,"comments":0,"pivot_tables":0},"unopened":[],"bounds":{"document_bytes":16777216,"sheet_cells":100000,"rows_first":2000,"rows_last":500,"rows_between":2000,"halvings":0,"cell_chars":16384,"cell_head_chars":4096},"cells_cut":0,"cells_raw":0,"read":"whole","date_system":"1900"}

{"sheet":"Qsc","index":0,"n_rows":3,"n_cols":4,"rows_kept":3,"cut":false,"hidden":false,"merged":[]}
[]
[null,"Calc Qsc",{"$f":"SUM(C3:C1000)","v":0},"TOTAL"]
[null,"Line or Route. Direction. Lane",0]

{"sheet":"Line or Route. Direction. Lane","index":1,"n_rows":1000,"n_cols":28,"rows_kept":1000,"cut":false,"hidden":false,"merged":[[8,10,8,19],[6,1,6,5],[8,3,9,3],[8,5,9,5],[8,8,9,8],[8,9,9,9],[27,23,29,23],[27,24,29,26],[27,27,29,27],[30,27,32,27],[33,27,35,27],[33,24,35,26],[8,20,9,20],[11,23,11,27],[12,23,13,27],[14,23,15,26],[14,27,15,27],[30,23,32,23],[33,23,35,23],[30,24,32,24],[30,25,32,25],[30,26,32,26]]}
[null,null,null,"Section",null,"Line or Route. Direction. Lane"]
[null,null,null,null,"LANE WIDTH (ft)   "]
[null,null,null,null,null,null,null,null,null,null,null,"BASE 2",null,"OG LAYER",null,"BASE 1",null,"INTERMED.",null,"SURFACE"]
[null,null,null,null,"PROFILE STARTING STATION   ",null,null,null,null,null,"Unit Price, U ($/Ton) =>"]
[null,null,null,null,"PROFILE ENDING STATION   ",null,null,null,null,null,"Planned Spread Rate, S (lb/SYD) =>"]
[]
[null,"ADJUSTMENT FOR SMOOTHNESS TOTAL QUALITY ASSURANCE    ",null,null,null,null,null,"Qs=",{"$f":"SUM(U11:U995)","v":0},"Total for Lane  "]
[]
["ProVAL Starting Distance","ProVAL  Ending Distance","ProVal Output Length","START STATION",null,"END STATION",null,"MRI","Comments","PAY FACTOR PFS","CALCULATED CONTRACT VALUE OF HMA MATERIAL PLACED",null,null,null,null,null,null,null,null,null,"qs"]
["(feet)","(feet)","(feet)",null,null,null,null,"(in. /mile)",null,null,null,{"$f":"L3","v":"BASE 2"},null,{"$f":"N3","v":"OG LAYER"},null,{"$f":"P3","v":"BASE 1"},null,{"$f":"R3","v":"INTERMED."},null,{"$f":"T3","v":"SURFACE"}]
[null,null,null,{"$f":"IF($F$4=\"\",\"\",IF($F$5<$F$4,F4-50,F4+50))","v":""},null,{"$f":"IF(C11=\"\",\"\",IF($F$5<$F$4,D11-C11,D11+C11))","v":""},null,null,null,null,null,{"$f":"IF(OR($D11=\"\",$D11=\"Exemption\",L$4=0),\"\",ROUND($C11*$F$2/9*L$5/2000*L$4,2))","v":""},null,{"$f":"IF(OR($D11=\"\",$D11=\"Exemption\",N$4=0),\"\",ROUND($C11*$F$2/9*N$5/2000*N$4,2))","v":""},null,{"$f":"IF(OR($D11=\"\",$D11=\"Exemption\",P$4=0),\"\",ROUND($C11*$F$2/9*P$5/2000*P$4,2))","v":""},null,{"$f":"IF(OR($D11=\"\",$D11=\"Exemption\",R$4=0),\"\",ROUND($C11*$F$2/9*R$5/2000*R$4,2))","v":""},null,{"$f":"IF(OR($D11=\"\",$D11=\"Exemption\",T$4=0),\"\",ROUND($C11*$F$2/9*T$5/2000*T$4,2))","v":""},{"$f":"IF($J11=\"\",\"\",ROUND((($J11-1)*SUM(P11,R11,T11,N11,L11)),2))","v":""}]
[null,null,null,{"$f":"+IF(A12=\"\",\"\",IF($F$5<$F$4,D11-(A12-A11),D11+(A12-A11)))","v":""},null,"",null,null,null,null,null,"",null,"",null,"",null,"",null,"",""]
[null,null,null,"",null,"",null,null,null,null,null,"",null,"",null,"",null,"",null,"","",null,null,"PAY FACTORS FOR SMOOTHNESS\nPosted Speed greater than 45 mph"]
[null,null,null,"",null,"",null,null,null,null,null,"",null,"",null,"",null,"",null,"",""]
[null,null,null,"",null,"",null,null,null,null,null,"",null,"",null,"",null,"",null,"","",null,null,"MRI (inches per mile)",null,null,null,"Pay Factor, PF"]
[null,null,null,"",null,"",null,null,null,null,null,"",null,"",null,"",null,"",null,"",""]
[null,null,null,"",null,"",null,null,null,null,null,"",null,"",null,"",null,"",null,"","",null,null,"Over",0,"to",35,1.06]
[null,null,null,"",null,"",null,null,null,null,null,"",null,"",null,"",null,"",null,"","",null,null,"Over",35,"to",40,1.05]
[null,null,null,"",null,"",null,null,null,null,null,"",null,"",null,"",null,"",null,"","",null,null,"Over",40,"to",45,1.04]
[null,null,null,"",null,"",null,null,null,null,null,"",null,"",null,"",null,"",null,"","",null,null,"Over",45,"to",50,1.03]
[null,null,null,"",null,"",null,null,null,null,null,"",null,"",null,"",null,"",null,"","",null,null,"Over",50,"to",55,1.02]
[null,null,null,"",null,"",null,null,null,null,null,"",null,"",null,"",null,"",null,"","",null,null,"Over",55,"to",60,1.01]
[null,null,null,"",null,"",null,null,null,null,null,"",null,"",null,"",null,"",null,"","",null,null,"Over",60,"to",70,1]
[null,null,null,"",null,"",null,null,null,null,null,"",null,"",null,"",null,"",null,"","",null,null,"Over",70,"to",75,0.99]
[null,null,null,"",null,"",null,null,null,null,null,"",null,"",null,"",null,"",null,"","",null,null,"Over",75,"to",80,0.98]
[null,null,null,"",null,"",null,null,null,null,null,"",null,"",null,"",null,"",null,"","",null,null,"Over",80,"to",85,0.96]
[null,null,null,"",null,"",null,null,null,null,null,"",null,"",null,"",null,"",null,"","",null,null,"Over",85,"to",90,0.95]
[null,null,null,"",null,"",null,null,null,null,null,"",null,"",null,"",null,"",null,"","",null,null,"Over",90,null,null,"For Type A, the pay factor will be 0.95 and the section shall be corrected to 70 or less."]
[null,null,null,"",null,"",null,null,null,null,null,"",null,"",null,"",null,"",null,"",""]
[null,null,null,"",null,"",null,null,null,null,null,"",null,"",null,"",null,"",null,"",""]
[null,null,null,"",null,"",null,null,null,null,null,"",null,"",null,"",null,"",null,"","",null,null,"Over",90,"to",110,"For Type B, the pay factor will be 0.95 and the section does not require correction."]
[null,null,null,"",null,"",null,null,null,null,null,"",null,"",null,"",null,"",null,"",""]
[null,null,null,"",null,"",null,null,null,null,null,"",null,"",null,"",null,"",null,"",""]
[null,null,null,"",null,"",null,null,null,null,null,"",null,"",null,"",null,"",null,"","",null,null,"Over",110,null,null,"For Type B, the pay factor will be 0.95 and the section shall be corrected to 90 or less."]
[null,null,null,"",null,"",null,null,null,null,null,"",null,"",null,"",null,"",null,"",""]
[null,null,null,"",null,"",null,null,null,null,null,"",null,"",null,"",null,"",null,"",""]
[null,null,null,"",null,"",null,null,null,null,null,"",null,"",null,"",null,"",null,"",""]
[null,null,null,"",null,"",null,null,null,null,null,"",null,"",null,"",null,"",null,"",""]
[null,null,null,"",null,"",null,null,null,null,null,"",null,"",null,"",null,"",null,"",""]
[null,null,null,"",null,"",null,null,null,null,null,"",null,"",null,"",null,"",null,"",""]
[null,null,null,"",null,"",null,null,null,null,null,"",null,"",null,"",null,"",null,"",""]
[null,null,null,"",null,"",null,null,null,null,null,"",null,"",null,"",null,"",null,"",""]
[null,null,null,"",null,"",null,null,null,null,null,"",null,"",null,"",null,"",null,"",""]
[null,null,null,"",null,"",null,null,null,null,null,"",null,"",null,"",null,"",null,"",""]
[null,null,null,"",null,"",null,null,null,null,null,"",null,"",null,"",null,"",null,"",""]
[null,null,null,"",null,"",null,null,null,null,null,"",null,"",null,"",null,"",null,"",""]
[null,null,null,"",null,"",null,null,null,null,null,"",null,"",null,"",null,"",null,"",""]
[null,null,null,"",null,"",null,null,null,null,null,"",null,"",null,"",null,"",null,"",""]
[null,null,null,"",null,"",null,null,null,null,null,"",null,"",null,"",null,"",null,"",""]
[null,null,null,"",null,"",null,null,null,null,null,"",null,"",null,"",null,"",null,"",""]
[null,null,null,"",null,"",null,null,null,null,null,"",null,"",null,"",null,"",null,"",""]
[null,null,null,"",null,"",null,null,null,null,null,"",null,"",null,"",null,"",null,"",""]
[null,null,null,"",null,"",null,null,null,null,null,"",null,"",null,"",null,"",null,"",""]
[null,null,null,"",null,"",null,null,null,null,null,"",null,"",null,"",null,"",null,"",""]
[null,null,null,"",null,"",null,null,null,null,null,"",null,"",null,"",null,"",null,"",""]
[null,null,null,"",null,"",null,null,null,null,null,"",null,"",null,"",null,"",null,"",""]
[null,null,null,"",null,"",null,null,null,null,null,"",null,"",null,"",null,"",null,"",""]
[null,null,null,"",null,"",null,null,null,null,null,"",null,"",null,"",null,"",null,"",""]
[null,null,null,"",null,"",null,null,null,null,null,"",null,"",null,"",null,"",null,"",""]
[null,null,null,"",null,"",null,null,null,null,null,"",null,"",null,"",null,"",null,"",""]
[null,null,null,"",null,"",null,null,null,null,null,"",null,"",null,"",null,"",null,"",""]
[null,null,null,"",null,"",null,null,null,null,null,"",null,"",null,"",null,"",null,"",""]
[null,null,null,"",null,"",null,null,null,null,null,"",null,"",null,"",null,"",null,"",""]
[null,null,null,"",null,"",null,null,null,null,null,"",null,"",null,"",null,"",null,"",""]
[null,null,null,"",null,"",null,null,null,null,null,"",null,"",null,"",null,"",null,"",""]
[null,null,null,"",null,"",null,null,null,null,null,"",null,"",null,"",null,"",null,"",""]
[null,null,null,"",null,"",null,null,null,null,null,"",null,"",null,"",null,"",null,"",""]
[null,null,null,"",null,"",null,null,null,null,null,"",null,"",null,"",null,"",null,"",""]
[null,null,null,"",null,"",null,null,null,null,null,"",null,"",null,"",null,"",null,"",""]
[null,null,null,"",null,"",null,null,null,null,null,"",null,"",null,"",null,"",null,"",""]
[null,null,null,"",null,"",null,null,null,null,null,"",null,"",null,"",null,"",null,"",""]
[null,null,null,"",null,"",null,null,null,null,null,"",null,"",null,"",null,"",null,"",""]
[null,null,null,"",null,"",null,null,null,null,null,"",null,"",null,"",null,"",null,"",""]
[null,null,null,"",null,"",null,null,null,null,null,"",null,"",null,"",null,"",null,"",""]
[null,null,null,"",null,{"$f":"IF(C75=\"\",\"\",IF($F$5<$F$4,D75-C75,D75+C75))","v":""},null,null,null,null,null,{"$f":"IF(OR($D75=\"\",$D75=\"Exemption\",L$4=0),\"\",ROUND($C75*$F$2/9*L$5/2000*L$4,2))","v":""},null,{"$f":"IF(OR($D75=\"\",$D75=\"Exemption\",N$4=0),\"\",ROUND($C75*$F$2/9*N$5/2000*N$4,2))","v":""},null,{"$f":"IF(OR($D75=\"\",$D75=\"Exemption\",P$4=0),\"\",ROUND($C75*$F$2/9*P$5/2000*P$4,2))","v":""},null,{"$f":"IF(OR($D75=\"\",$D75=\"Exemption\",R$4=0),\"\",ROUND($C75*$F$2/9*R$5/2000*R$4,2))","v":""},null,{"$f":"IF(OR($D75=\"\",$D75=\"Exemption\",T$4=0),\"\",ROUND($C75*$F$2/9*T$5/2000*T$4,2))","v":""},{"$f":"IF($J75=\"\",\"\",ROUND((($J75-1)*SUM(P75,R75,T75,N75,L75)),2))","v":""}]
[null,null,null,{"$f":"+IF(A76=\"\",\"\",IF($F$5<$F$4,D75-(A76-A75),D75+(A76-A75)))","v":""},null,"",null,null,null,null,null,"",null,"",null,"",null,"",null,"",""]
[null,null,null,"",null,"",null,null,null,null,null,"",null,"",null,"",null,"",null,"",""]
[null,null,null,"",null,"",null,null,null,null,null,"",null,"",null,"",null,"",null,"",""]
[null,null,null,"",null,"",null,null,null,null,null,"",null,"",null,"",null,"",null,"",""]
[null,null,null,"",null,"",null,null,null,null,null,"",null,"",null,"",null,"",null,"",""]
[null,null,null,"",null,"",null,null,null,null,null,"",null,"",null,"",null,"",null,"",""]
[null,null,null,"",null,"",null,null,null,null,null,"",null,"",null,"",null,"",null,"",""]
[null,null,null,"",null,"",null,null,null,null,null,"",null,"",null,"",null,"",null,"",""]
[null,null,null,"",null,"",null,null,null,null,null,"",null,"",null,"",null,"",null,"",""]
[null,null,null,"",null,"",null,null,null,null,null,"",null,"",null,"",null,"",null,"",""]
[null,null,null,"",null,"",null,null,null,null,null,"",null,"",null,"",null,"",null,"",""]
[null,null,null,"",null,"",null,null,null,null,null,"",null,"",null,"",null,"",null,"",""]
[null,null,null,"",null,"",null,null,null,null,null,"",null,"",null,"",null,"",null,"",""]
[null,null,null,"",null,"",null,null,null,null,null,"",null,"",null,"",null,"",null,"",""]
[null,null,null,"",null,"",null,null,null,null,null,"",null,"",null,"",null,"",null,"",""]
[null,null,null,"",null,"",null,null,null,null,null,"",null,"",null,"",null,"",null,"",""]
[null,null,null,"",null,"",null,null,null,null,null,"",null,"",null,"",null,"",null,"",""]
[null,null,null,"",null,"",null,null,null,null,null,"",null,"",null,"",null,"",null,"",""]
[null,null,null,"",null,"",null,null,null,null,null,"",null,"",null,"",null,"",null,"",""]
[null,null,null,"",null,"",null,null,null,null,null,"",null,"",null,"",null,"",null,"",""]
[null,null,null,"",null,"",null,null,null,null,null,"",null,"",null,"",null,"",null,"",""]
[null,null,null,"",null,"",null,null,null,null,null,"",null,"",null,"",null,"",null,"",""]
[null,null,null,"",null,"",null,null,null,null,null,"",null,"",null,"",null,"",null,"",""]
[null,null,null,"",null,"",null,null,null,null,null,"",null,"",null,"",null,"",null,"",""]
[null,null,null,"",null,"",null,null,null,null,null,"",null,"",null,"",null,"",null,"",""]
[null,null,null,"",null,"",null,null,null,null,null,"",null,"",null,"",null,"",null,"",""]
[null,null,null,"",null,"",null,null,null,null,null,"",null,"",null,"",null,"",null,"",""]
[null,null,null,"",null,"",null,null,null,null,null,"",null,"",null,"",null,"",null,"",""]
[null,null,null,"",null,"",null,null,null,null,null,"",null,"",null,"",null,"",null,"",""]
[null,null,null,"",null,"",null,null,null,null,null,"",null,"",null,"",null,"",null,"",""]
[null,null,null,"",null,"",null,null,null,null,null,"",null,"",null,"",null,"",null,"",""]
[null,null,null,"",null,"",null,null,null,null,null,"",null,"",null,"",null,"",null,"",""]
[null,null,null,"",null,"",null,null,null,null,null,"",null,"",null,"",null,"",null,"",""]
[null,null,null,"",null,"",null,null,null,null,null,"",null,"",null,"",null,"",null,"",""]
[null,null,null,"",null,"",null,null,null,null,null,"",null,"",null,"",null,"",null,"",""]
[null,null,null,"",null,"",null,null,null,null,null,"",null,"",null,"",null,"",null,"",""]
[null,null,null,"",null,"",null,null,null,null,null,"",null,"",null,"",null,"",null,"",""]
[null,null,null,"",null,"",null,null,null,null,null,"",null,"",null,"",null,"",null,"",""]
[null,null,null,"",null,"",null,null,null,null,null,"",null,"",null,"",null,"",null,"",""]
[null,null,null,"",null,"",null,null,null,null,null,"",null,"",null,"",null,"",null,"",""]
[null,null,null,"",null,"",null,null,null,null,null,"",null,"",null,"",null,"",null,"",""]
[null,null,null,"",null,"",null,null,null,null,null,"",null,"",null,"",null,"",null,"",""]
[null,null,null,"",null,"",null,null,null,null,null,"",null,"",null,"",null,"",null,"",""]
[null,null,null,"",null,"",null,null,null,null,null,"",null,"",null,"",null,"",null,"",""]
[null,null,null,"",null,"",null,null,null,null,null,"",null,"",null,"",null,"",null,"",""]
[null,null,null,"",null,"",null,null,null,null,null,"",null,"",null,"",null,"",null,"",""]
[null,null,null,"",null,"",null,null,null,null,null,"",null,"",null,"",null,"",null,"",""]
[null,null,null,"",null,"",null,null,null,null,null,"",null,"",null,"",null,"",null,"",""]
[null,null,null,"",null,"",null,null,null,null,null,"",null,"",null,"",null,"",null,"",""]
[null,null,null,"",null,"",null,null,null,null,null,"",null,"",null,"",null,"",null,"",""]
[null,null,null,"",null,"",null,null,null,null,null,"",null,"",null,"",null,"",null,"",""]
[null,null,null,"",null,"",null,null,null,null,null,"",null,"",null,"",null,"",null,"",""]
[null,null,null,"",null,"",null,null,null,null,null,"",null,"",null,"",null,"",null,"",""]
[null,null,null,"",null,"",null,null,null,null,null,"",null,"",null,"",null,"",null,"",""]
[null,null,null,"",null,"",null,null,null,null,null,"",null,"",null,"",null,"",null,"",""]
[null,null,null,"",null,"",null,null,null,null,null,"",null,"",null,"",null,"",null,"",""]
[null,null,null,"",null,"",null,null,null,null,null,"",null,"",null,"",null,"",null,"",""]
[null,null,null,"",null,"",null,null,null,null,null,"",null,"",null,"",null,"",null,"",""]
[null,null,null,"",null,"",null,null,null,null,null,"",null,"",null,"",null,"",null,"",""]
[null,null,null,"",null,"",null,null,null,null,null,"",null,"",null,"",null,"",null,"",""]
[null,null,null,"",null,"",null,null,null,null,null,"",null,"",null,"",null,"",null,"",""]
[null,null,null,"",null,"",null,null,null,null,null,"",null,"",null,"",null,"",null,"",""]
[null,null,null,"",null,"",null,null,null,null,null,"",null,"",null,"",null,"",null,"",""]
[null,null,null,"",null,{"$f":"IF(C139=\"\",\"\",IF($F$5<$F$4,D139-C139,D139+C139))","v":""},null,null,null,null,null,{"$f":"IF(OR($D139=\"\",$D139=\"Exemption\",L$4=0),\"\",ROUND($C139*$F$2/9*L$5/2000*L$4,2))","v":""},null,{"$f":"IF(OR($D139=\"\",$D139=\"Exemption\",N$4=0),\"\",ROUND($C139*$F$2/9*N$5/2000*N$4,2))","v":""},null,{"$f":"IF(OR($D139=\"\",$D139=\"Exemption\",P$4=0),\"\",ROUND($C139*$F$2/9*P$5/2000*P$4,2))","v":""},null,{"$f":"IF(OR($D139=\"\",$D139=\"Exemption\",R$4=0),\"\",ROUND($C139*$F$2/9*R$5/2000*R$4,2))","v":""},null,{"$f":"IF(OR($D139=\"\",$D139=\"Exemption\",T$4=0),\"\",ROUND($C139*$F$2/9*T$5/2000*T$4,2))","v":""},{"$f":"IF($J139=\"\",\"\",ROUND((($J139-1)*SUM(P139,R139,T139,N139,L139)),2))","v":""}]
[null,null,null,{"$f":"+IF(A140=\"\",\"\",IF($F$5<$F$4,D139-(A140-A139),D139+(A140-A139)))","v":""},null,"",null,null,null,null,null,"",null,"",null,"",null,"",null,"",""]
[null,null,null,"",null,"",null,null,null,null,null,"",null,"",null,"",null,"",null,"",""]
[null,null,null,"",null,"",null,null,null,null,null,"",null,"",null,"",null,"",null,"",""]
[null,null,null,"",null,"",null,null,null,null,null,"",null,"",null,"",null,"",null,"",""]
[null,null,null,"",null,"",null,null,null,null,null,"",null,"",null,"",null,"",null,"",""]
[null,null,null,"",null,"",null,null,null,null,null,"",null,"",null,"",null,"",null,"",""]
[null,null,null,"",null,"",null,null,null,null,null,"",null,"",null,"",null,"",null,"",""]
[null,null,null,"",null,"",null,null,null,null,null,"",null,"",null,"",null,"",null,"",""]
[null,null,null,"",null,"",null,null,null,null,null,"",null,"",null,"",null,"",null,"",""]
[null,null,null,"",null,"",null,null,null,null,null,"",null,"",null,"",null,"",null,"",""]
[null,null,null,"",null,"",null,null,null,null,null,"",null,"",null,"",null,"",null,"",""]
[null,null,null,"",null,"",null,null,null,null,null,"",null,"",null,"",null,"",null,"",""]
[null,null,null,"",null,"",null,null,null,null,null,"",null,"",null,"",null,"",null,"",""]
[null,null,null,"",null,"",null,null,null,null,null,"",null,"",null,"",null,"",null,"",""]
[null,null,null,"",null,"",null,null,null,null,null,"",null,"",null,"",null,"",null,"",""]
[null,null,null,"",null,"",null,null,null,null,null,"",null,"",null,"",null,"",null,"",""]
[null,null,null,"",null,"",null,null,null,null,null,"",null,"",null,"",null,"",null,"",""]
[null,null,null,"",null,"",null,null,null,null,null,"",null,"",null,"",null,"",null,"",""]
[null,null,null,"",null,"",null,null,null,null,null,"",null,"",null,"",null,"",null,"",""]
[null,null,null,"",null,"",null,null,null,null,null,"",null,"",null,"",null,"",null,"",""]
[null,null,null,"",null,"",null,null,null,null,null,"",null,"",null,"",null,"",null,"",""]
[null,null,null,"",null,"",null,null,null,null,null,"",null,"",null,"",null,"",null,"",""]
[null,null,null,"",null,"",null,null,null,null,null,"",null,"",null,"",null,"",null,"",""]
[null,null,null,"",null,"",null,null,null,null,null,"",null,"",null,"",null,"",null,"",""]
[null,null,null,"",null,"",null,null,null,null,null,"",null,"",null,"",null,"",null,"",""]
[null,null,null,"",null,"",null,null,null,null,null,"",null,"",null,"",null,"",null,"",""]
[null,null,null,"",null,"",null,null,null,null,null,"",null,"",null,"",null,"",null,"",""]
[null,null,null,"",null,"",null,null,null,null,null,"",null,"",null,"",null,"",null,"",""]
[null,null,null,"",null,"",null,null,null,null,null,"",null,"",null,"",null,"",null,"",""]
[null,null,null,"",null,"",null,null,null,null,null,"",null,"",null,"",null,"",null,"",""]
[null,null,null,"",null,"",null,null,null,null,null,"",null,"",null,"",null,"",null,"",""]
[null,null,null,"",null,"",null,null,null,null,null,"",null,"",null,"",null,"",null,"",""]
[null,null,null,"",null,"",null,null,null,null,null,"",null,"",null,"",null,"",null,"",""]
[null,null,null,"",null,"",null,null,null,null,null,"",null,"",null,"",null,"",null,"",""]
[null,null,null,"",null,"",null,null,null,null,null,"",null,"",null,"",null,"",null,"",""]
[null,null,null,"",null,"",null,null,null,null,null,"",null,"",null,"",null,"",null,"",""]
[null,null,null,"",null,"",null,null,null,null,null,"",null,"",null,"",null,"",null,"",""]
[null,null,null,"",null,"",null,null,null,null,null,"",null,"",null,"",null,"",null,"",""]
[null,null,null,"",null,"",null,null,null,null,null,"",null,"",null,"",null,"",null,"",""]
[null,null,null,"",null,"",null,null,null,null,null,"",null,"",null,"",null,"",null,"",""]
[null,null,null,"",null,"",null,null,null,null,null,"",null,"",null,"",null,"",null,"",""]
[null,null,null,"",null,"",null,null,null,null,null,"",null,"",null,"",null,"",null,"",""]
[null,null,null,"",null,"",null,null,null,null,null,"",null,"",null,"",null,"",null,"",""]
[null,null,null,"",null,"",null,null,null,null,null,"",null,"",null,"",null,"",null,"",""]
[null,null,null,"",null,"",null,null,null,null,null,"",null,"",null,"",null,"",null,"",""]
[null,null,null,"",null,"",null,null,null,null,null,"",null,"",null,"",null,"",null,"",""]
[null,null,null,"",null,"",null,null,null,null,null,"",null,"",null,"",null,"",null,"",""]
[null,null,null,"",null,"",null,null,null,null,null,"",null,"",null,"",null,"",null,"",""]
[null,null,null,"",null,"",null,null,null,null,null,"",null,"",null,"",null,"",null,"",""]
[null,null,null,"",null,"",null,null,null,null,null,"",null,"",null,"",null,"",null,"",""]
[null,null,null,"",null,"",null,null,null,null,null,"",null,"",null,"",null,"",null,"",""]
[null,null,null,"",null,"",null,null,null,null,null,"",null,"",null,"",null,"",null,"",""]
[null,null,null,"",null,"",null,null,null,null,null,"",null,"",null,"",null,"",null,"",""]
[null,null,null,"",null,"",null,null,null,null,null,"",null,"",null,"",null,"",null,"",""]
[null,null,null,"",null,"",null,null,null,null,null,"",null,"",null,"",null,"",null,"",""]
[null,null,null,"",null,"",null,null,null,null,null,"",null,"",null,"",null,"",null,"",""]
[null,null,null,"",null,"",null,null,null,null,null,"",null,"",null,"",null,"",null,"",""]
[null,null,null,"",null,"",null,null,null,null,null,"",null,"",null,"",null,"",null,"",""]
[null,null,null,"",null,"",null,null,null,null,null,"",null,"",null,"",null,"",null,"",""]
[null,null,null,"",null,"",null,null,null,null,null,"",null,"",null,"",null,"",null,"",""]
[null,null,null,"",null,"",null,null,null,null,null,"",null,"",null,"",null,"",null,"",""]
[null,null,null,"",null,"",null,null,null,null,null,"",null,"",null,"",null,"",null,"",""]
[null,null,null,"",null,"",null,null,null,null,null,"",null,"",null,"",null,"",null,"",""]
[null,null,null,"",null,{"$f":"IF(C203=\"\",\"\",IF($F$5<$F$4,D203-C203,D203+C203))","v":""},null,null,null,null,null,{"$f":"IF(OR($D203=\"\",$D203=\"Exemption\",L$4=0),\"\",ROUND($C203*$F$2/9*L$5/2000*L$4,2))","v":""},null,{"$f":"IF(OR($D203=\"\",$D203=\"Exemption\",N$4=0),\"\",ROUND($C203*$F$2/9*N$5/2000*N$4,2))","v":""},null,{"$f":"IF(OR($D203=\"\",$D203=\"Exemption\",P$4=0),\"\",ROUND($C203*$F$2/9*P$5/2000*P$4,2))","v":""},null,{"$f":"IF(OR($D203=\"\",$D203=\"Exemption\",R$4=0),\"\",ROUND($C203*$F$2/9*R$5/2000*R$4,2))","v":""},null,{"$f":"IF(OR($D203=\"\",$D203=\"Exemption\",T$4=0),\"\",ROUND($C203*$F$2/9*T$5/2000*T$4,2))","v":""},{"$f":"IF($J203=\"\",\"\",ROUND((($J203-1)*SUM(P203,R203,T203,N203,L203)),2))","v":""}]
[null,null,null,{"$f":"+IF(A204=\"\",\"\",IF($F$5<$F$4,D203-(A204-A203),D203+(A204-A203)))","v":""},null,"",null,null,null,null,null,"",null,"",null,"",null,"",null,"",""]
[null,null,null,"",null,"",null,null,null,null,null,"",null,"",null,"",null,"",null,"",""]
[null,null,null,"",null,"",null,null,null,null,null,"",null,"",null,"",null,"",null,"",""]
[null,null,null,"",null,"",null,null,null,null,null,"",null,"",null,"",null,"",null,"",""]
[null,null,null,"",null,"",null,null,null,null,null,"",null,"",null,"",null,"",null,"",""]
[null,null,null,"",null,"",null,null,null,null,null,"",null,"",null,"",null,"",null,"",""]
[null,null,null,"",null,"",null,null,null,null,null,"",null,"",null,"",null,"",null,"",""]
[null,null,null,"",null,"",null,null,null,null,null,"",null,"",null,"",null,"",null,"",""]
[null,null,null,"",null,"",null,null,null,null,null,"",null,"",null,"",null,"",null,"",""]
[null,null,null,"",null,"",null,null,null,null,null,"",null,"",null,"",null,"",null,"",""]
[null,null,null,"",null,"",null,null,null,null,null,"",null,"",null,"",null,"",null,"",""]
[null,null,null,"",null,"",null,null,null,null,null,"",null,"",null,"",null,"",null,"",""]
[null,null,null,"",null,"",null,null,null,null,null,"",null,"",null,"",null,"",null,"",""]
[null,null,null,"",null,"",null,null,null,null,null,"",null,"",null,"",null,"",null,"",""]
[null,null,null,"",null,"",null,null,null,null,null,"",null,"",null,"",null,"",null,"",""]
[null,null,null,"",null,"",null,null,null,null,null,"",null,"",null,"",null,"",null,"",""]
[null,null,null,"",null,"",null,null,null,null,null,"",null,"",null,"",null,"",null,"",""]
[null,null,null,"",null,"",null,null,null,null,null,"",null,"",null,"",null,"",null,"",""]
[null,null,null,"",null,"",null,null,null,null,null,"",null,"",null,"",null,"",null,"",""]
[null,null,null,"",null,"",null,null,null,null,null,"",null,"",null,"",null,"",null,"",""]
[null,null,null,"",null,"",null,null,null,null,null,"",null,"",null,"",null,"",null,"",""]
[null,null,null,"",null,"",null,null,null,null,null,"",null,"",null,"",null,"",null,"",""]
[null,null,null,"",null,"",null,null,null,null,null,"",null,"",null,"",null,"",null,"",""]
[null,null,null,"",null,"",null,null,null,null,null,"",null,"",null,"",null,"",null,"",""]
[null,null,null,"",null,"",null,null,null,null,null,"",null,"",null,"",null,"",null,"",""]
[null,null,null,"",null,"",null,null,null,null,null,"",null,"",null,"",null,"",null,"",""]
[null,null,null,"",null,"",null,null,null,null,null,"",null,"",null,"",null,"",null,"",""]
[null,null,null,"",null,"",null,null,null,null,null,"",null,"",null,"",null,"",null,"",""]
[null,null,null,"",null,"",null,null,null,null,null,"",null,"",null,"",null,"",null,"",""]
[null,null,null,"",null,"",null,null,null,null,null,"",null,"",null,"",null,"",null,"",""]
[null,null,null,"",null,"",null,null,null,null,null,"",null,"",null,"",null,"",null,"",""]
[null,null,null,"",null,"",null,null,null,null,null,"",null,"",null,"",null,"",null,"",""]
[null,null,null,"",null,"",null,null,null,null,null,"",null,"",null,"",null,"",null,"",""]
[null,null,null,"",null,"",null,null,null,null,null,"",null,"",null,"",null,"",null,"",""]
[null,null,null,"",null,"",null,null,null,null,null,"",null,"",null,"",null,"",null,"",""]
[null,null,null,"",null,"",null,null,null,null,null,"",null,"",null,"",null,"",null,"",""]
[null,null,null,"",null,"",null,null,null,null,null,"",null,"",null,"",null,"",null,"",""]
[null,null,null,"",null,"",null,null,null,null,null,"",null,"",null,"",null,"",null,"",""]
[null,null,null,"",null,"",null,null,null,null,null,"",null,"",null,"",null,"",null,"",""]
[null,null,null,"",null,"",null,null,null,null,null,"",null,"",null,"",null,"",null,"",""]
[null,null,null,"",null,"",null,null,null,null,null,"",null,"",null,"",null,"",null,"",""]
[null,null,null,"",null,"",null,null,null,null,null,"",null,"",null,"",null,"",null,"",""]
[null,null,null,"",null,"",null,null,null,null,null,"",null,"",null,"",null,"",null,"",""]
[null,null,null,"",null,"",null,null,null,null,null,"",null,"",null,"",null,"",null,"",""]
[null,null,null,"",null,"",null,null,null,null,null,"",null,"",null,"",null,"",null,"",""]
[null,null,null,"",null,"",null,null,null,null,null,"",null,"",null,"",null,"",null,"",""]
[null,null,null,"",null,"",null,null,null,null,null,"",null,"",null,"",null,"",null,"",""]
[null,null,null,"",null,"",null,null,null,null,null,"",null,"",null,"",null,"",null,"",""]
[null,null,null,"",null,"",null,null,null,null,null,"",null,"",null,"",null,"",null,"",""]
[null,null,null,"",null,"",null,null,null,null,null,"",null,"",null,"",null,"",null,"",""]
[null,null,null,"",null,"",null,null,null,null,null,"",null,"",null,"",null,"",null,"",""]
[null,null,null,"",null,"",null,null,null,null,null,"",null,"",null,"",null,"",null,"",""]
[null,null,null,"",null,"",null,null,null,null,null,"",null,"",null,"",null,"",null,"",""]
[null,null,null,"",null,"",null,null,null,null,null,"",null,"",null,"",null,"",null,"",""]
[null,null,null,"",null,"",null,null,null,null,null,"",null,"",null,"",null,"",null,"",""]
[null,null,null,"",null,"",null,null,null,null,null,"",null,"",null,"",null,"",null,"",""]
[null,null,null,"",null,"",null,null,null,null,null,"",null,"",null,"",null,"",null,"",""]
[null,null,null,"",null,"",null,null,null,null,null,"",null,"",null,"",null,"",null,"",""]
[null,null,null,"",null,"",null,null,null,null,null,"",null,"",null,"",null,"",null,"",""]
[null,null,null,"",null,"",null,null,null,null,null,"",null,"",null,"",null,"",null,"",""]
[null,null,null,"",null,"",null,null,null,null,null,"",null,"",null,"",null,"",null,"",""]
[null,null,null,"",null,"",null,null,null,null,null,"",null,"",null,"",null,"",null,"",""]
[null,null,null,"",null,"",null,null,null,null,null,"",null,"",null,"",null,"",null,"",""]
[null,null,null,"",null,{"$f":"IF(C267=\"\",\"\",IF($F$5<$F$4,D267-C267,D267+C267))","v":""},null,null,null,null,null,{"$f":"IF(OR($D267=\"\",$D267=\"Exemption\",L$4=0),\"\",ROUND($C267*$F$2/9*L$5/2000*L$4,2))","v":""},null,{"$f":"IF(OR($D267=\"\",$D267=\"Exemption\",N$4=0),\"\",ROUND($C267*$F$2/9*N$5/2000*N$4,2))","v":""},null,{"$f":"IF(OR($D267=\"\",$D267=\"Exemption\",P$4=0),\"\",ROUND($C267*$F$2/9*P$5/2000*P$4,2))","v":""},null,{"$f":"IF(OR($D267=\"\",$D267=\"Exemption\",R$4=0),\"\",ROUND($C267*$F$2/9*R$5/2000*R$4,2))","v":""},null,{"$f":"IF(OR($D267=\"\",$D267=\"Exemption\",T$4=0),\"\",ROUND($C267*$F$2/9*T$5/2000*T$4,2))","v":""},{"$f":"IF($J267=\"\",\"\",ROUND((($J267-1)*SUM(P267,R267,T267,N267,L267)),2))","v":""}]
[null,null,null,{"$f":"+IF(A268=\"\",\"\",IF($F$5<$F$4,D267-(A268-A267),D267+(A268-A267)))","v":""},null,"",null,null,null,null,null,"",null,"",null,"",null,"",null,"",""]
[null,null,null,"",null,"",null,null,null,null,null,"",null,"",null,"",null,"",null,"",""]
[null,null,null,"",null,"",null,null,null,null,null,"",null,"",null,"",null,"",null,"",""]
[null,null,null,"",null,"",null,null,null,null,null,"",null,"",null,"",null,"",null,"",""]
[null,null,null,"",null,"",null,null,null,null,null,"",null,"",null,"",null,"",null,"",""]
[null,null,null,"",null,"",null,null,null,null,null,"",null,"",null,"",null,"",null,"",""]
[null,null,null,"",null,"",null,null,null,null,null,"",null,"",null,"",null,"",null,"",""]
[null,null,null,"",null,"",null,null,null,null,null,"",null,"",null,"",null,"",null,"",""]
[null,null,null,"",null,"",null,null,null,null,null,"",null,"",null,"",null,"",null,"",""]
[null,null,null,"",null,"",null,null,null,null,null,"",null,"",null,"",null,"",null,"",""]
[null,null,null,"",null,"",null,null,null,null,null,"",null,"",null,"",null,"",null,"",""]
[null,null,null,"",null,"",null,null,null,null,null,"",null,"",null,"",null,"",null,"",""]
[null,null,null,"",null,"",null,null,null,null,null,"",null,"",null,"",null,"",null,"",""]
[null,null,null,"",null,"",null,null,null,null,null,"",null,"",null,"",null,"",null,"",""]
[null,null,null,"",null,"",null,null,null,null,null,"",null,"",null,"",null,"",null,"",""]
[null,null,null,"",null,"",null,null,null,null,null,"",null,"",null,"",null,"",null,"",""]
[null,null,null,"",null,"",null,null,null,null,null,"",null,"",null,"",null,"",null,"",""]
[null,null,null,"",null,"",null,null,null,null,null,"",null,"",null,"",null,"",null,"",""]
[null,null,null,"",null,"",null,null,null,null,null,"",null,"",null,"",null,"",null,"",""]
[null,null,null,"",null,"",null,null,null,null,null,"",null,"",null,"",null,"",null,"",""]
[null,null,null,"",null,"",null,null,null,null,null,"",null,"",null,"",null,"",null,"",""]
[null,null,null,"",null,"",null,null,null,null,null,"",null,"",null,"",null,"",null,"",""]
[null,null,null,"",null,"",null,null,null,null,null,"",null,"",null,"",null,"",null,"",""]
[null,null,null,"",null,"",null,null,null,null,null,"",null,"",null,"",null,"",null,"",""]
[null,null,null,"",null,"",null,null,null,null,null,"",null,"",null,"",null,"",null,"",""]
[null,null,null,"",null,"",null,null,null,null,null,"",null,"",null,"",null,"",null,"",""]
[null,null,null,"",null,"",null,null,null,null,null,"",null,"",null,"",null,"",null,"",""]
[null,null,null,"",null,"",null,null,null,null,null,"",null,"",null,"",null,"",null,"",""]
[null,null,null,"",null,"",null,null,null,null,null,"",null,"",null,"",null,"",null,"",""]
[null,null,null,"",null,"",null,null,null,null,null,"",null,"",null,"",null,"",null,"",""]
[null,null,null,"",null,"",null,null,null,null,null,"",null,"",null,"",null,"",null,"",""]
[null,null,null,"",null,"",null,null,null,null,null,"",null,"",null,"",null,"",null,"",""]
[null,null,null,"",null,"",null,null,null,null,null,"",null,"",null,"",null,"",null,"",""]
[null,null,null,"",null,"",null,null,null,null,null,"",null,"",null,"",null,"",null,"",""]
[null,null,null,"",null,"",null,null,null,null,null,"",null,"",null,"",null,"",null,"",""]
[null,null,null,"",null,"",null,null,null,null,null,"",null,"",null,"",null,"",null,"",""]
[null,null,null,"",null,"",null,null,null,null,null,"",null,"",null,"",null,"",null,"",""]
[null,null,null,"",null,"",null,null,null,null,null,"",null,"",null,"",null,"",null,"",""]
[null,null,null,"",null,"",null,null,null,null,null,"",null,"",null,"",null,"",null,"",""]
[null,null,null,"",null,"",null,null,null,null,null,"",null,"",null,"",null,"",null,"",""]
[null,null,null,"",null,"",null,null,null,null,null,"",null,"",null,"",null,"",null,"",""]
[null,null,null,"",null,"",null,null,null,null,null,"",null,"",null,"",null,"",null,"",""]
[null,null,null,"",null,"",null,null,null,null,null,"",null,"",null,"",null,"",null,"",""]
[null,null,null,"",null,"",null,null,null,null,null,"",null,"",null,"",null,"",null,"",""]
[null,null,null,"",null,"",null,null,null,null,null,"",null,"",null,"",null,"",null,"",""]
[null,null,null,"",null,"",null,null,null,null,null,"",null,"",null,"",null,"",null,"",""]
[null,null,null,"",null,"",null,null,null,null,null,"",null,"",null,"",null,"",null,"",""]
[null,null,null,"",null,"",null,null,null,null,null,"",null,"",null,"",null,"",null,"",""]
[null,null,null,"",null,"",null,null,null,null,null,"",null,"",null,"",null,"",null,"",""]
[null,null,null,"",null,"",null,null,null,null,null,"",null,"",null,"",null,"",null,"",""]
[null,null,null,"",null,"",null,null,null,null,null,"",null,"",null,"",null,"",null,"",""]
[null,null,null,"",null,"",null,null,null,null,null,"",null,"",null,"",null,"",null,"",""]
[null,null,null,"",null,"",null,null,null,null,null,"",null,"",null,"",null,"",null,"",""]
[null,null,null,"",null,"",null,null,null,null,null,"",null,"",null,"",null,"",null,"",""]
[null,null,null,"",null,"",null,null,null,null,null,"",null,"",null,"",null,"",null,"",""]
[null,null,null,"",null,"",null,null,null,null,null,"",null,"",null,"",null,"",null,"",""]
[null,null,null,"",null,"",null,null,null,null,null,"",null,"",null,"",null,"",null,"",""]
[null,null,null,"",null,"",null,null,null,null,null,"",null,"",null,"",null,"",null,"",""]
[null,null,null,"",null,"",null,null,null,null,null,"",null,"",null,"",null,"",null,"",""]
[null,null,null,"",null,"",null,null,null,null,null,"",null,"",null,"",null,"",null,"",""]
[null,null,null,"",null,"",null,null,null,null,null,"",null,"",null,"",null,"",null,"",""]
[null,null,null,"",null,"",null,null,null,null,null,"",null,"",null,"",null,"",null,"",""]
[null,null,null,"",null,"",null,null,null,null,null,"",null,"",null,"",null,"",null,"",""]
[null,null,null,"",null,{"$f":"IF(C331=\"\",\"\",IF($F$5<$F$4,D331-C331,D331+C331))","v":""},null,null,null,null,null,{"$f":"IF(OR($D331=\"\",$D331=\"Exemption\",L$4=0),\"\",ROUND($C331*$F$2/9*L$5/2000*L$4,2))","v":""},null,{"$f":"IF(OR($D331=\"\",$D331=\"Exemption\",N$4=0),\"\",ROUND($C331*$F$2/9*N$5/2000*N$4,2))","v":""},null,{"$f":"IF(OR($D331=\"\",$D331=\"Exemption\",P$4=0),\"\",ROUND($C331*$F$2/9*P$5/2000*P$4,2))","v":""},null,{"$f":"IF(OR($D331=\"\",$D331=\"Exemption\",R$4=0),\"\",ROUND($C331*$F$2/9*R$5/2000*R$4,2))","v":""},null,{"$f":"IF(OR($D331=\"\",$D331=\"Exemption\",T$4=0),\"\",ROUND($C331*$F$2/9*T$5/2000*T$4,2))","v":""},{"$f":"IF($J331=\"\",\"\",ROUND((($J331-1)*SUM(P331,R331,T331,N331,L331)),2))","v":""}]
[null,null,null,{"$f":"+IF(A332=\"\",\"\",IF($F$5<$F$4,D331-(A332-A331),D331+(A332-A331)))","v":""},null,"",null,null,null,null,null,"",null,"",null,"",null,"",null,"",""]
[null,null,null,"",null,"",null,null,null,null,null,"",null,"",null,"",null,"",null,"",""]
[null,null,null,"",null,"",null,null,null,null,null,"",null,"",null,"",null,"",null,"",""]
[null,null,null,"",null,"",null,null,null,null,null,"",null,"",null,"",null,"",null,"",""]
[null,null,null,"",null,"",null,null,null,null,null,"",null,"",null,"",null,"",null,"",""]
[null,null,null,"",null,"",null,null,null,null,null,"",null,"",null,"",null,"",null,"",""]
[null,null,null,"",null,"",null,null,null,null,null,"",null,"",null,"",null,"",null,"",""]
[null,null,null,"",null,"",null,null,null,null,null,"",null,"",null,"",null,"",null,"",""]
[null,null,null,"",null,"",null,null,null,null,null,"",null,"",null,"",null,"",null,"",""]
[null,null,null,"",null,"",null,null,null,null,null,"",null,"",null,"",null,"",null,"",""]
[null,null,null,"",null,"",null,null,null,null,null,"",null,"",null,"",null,"",null,"",""]
[null,null,null,"",null,"",null,null,null,null,null,"",null,"",null,"",null,"",null,"",""]
[null,null,null,"",null,"",null,null,null,null,null,"",null,"",null,"",null,"",null,"",""]
[null,null,null,"",null,"",null,null,null,null,null,"",null,"",null,"",null,"",null,"",""]
[null,null,null,"",null,"",null,null,null,null,null,"",null,"",null,"",null,"",null,"",""]
[null,null,null,"",null,"",null,null,null,null,null,"",null,"",null,"",null,"",null,"",""]
[null,null,null,"",null,"",null,null,null,null,null,"",null,"",null,"",null,"",null,"",""]
[null,null,null,"",null,"",null,null,null,null,null,"",null,"",null,"",null,"",null,"",""]
[null,null,null,"",null,"",null,null,null,null,null,"",null,"",null,"",null,"",null,"",""]
[null,null,null,"",null,"",null,null,null,null,null,"",null,"",null,"",null,"",null,"",""]
[null,null,null,"",null,"",null,null,null,null,null,"",null,"",null,"",null,"",null,"",""]
[null,null,null,"",null,"",null,null,null,null,null,"",null,"",null,"",null,"",null,"",""]
[null,null,null,"",null,"",null,null,null,null,null,"",null,"",null,"",null,"",null,"",""]
[null,null,null,"",null,"",null,null,null,null,null,"",null,"",null,"",null,"",null,"",""]
[null,null,null,"",null,"",null,null,null,null,null,"",null,"",null,"",null,"",null,"",""]
[null,null,null,"",null,"",null,null,null,null,null,"",null,"",null,"",null,"",null,"",""]
[null,null,null,"",null,"",null,null,null,null,null,"",null,"",null,"",null,"",null,"",""]
[null,null,null,"",null,"",null,null,null,null,null,"",null,"",null,"",null,"",null,"",{"$f":"IF($J359=\"\",\"\",ROUND((($J359-1)*SUM(P359,R359,T359,N359,L359)),2))","v":""}]
[null,null,null,"",null,"",null,null,null,null,null,"",null,"",null,"",null,"",null,"",""]
[null,null,null,"",null,"",null,null,null,null,null,"",null,"",null,"",null,"",null,"",""]
[null,null,null,"",null,"",null,null,null,null,null,"",null,"",null,"",null,"",null,"",""]
[null,null,null,"",null,"",null,null,null,null,null,"",null,"",null,"",null,"",null,"",""]
[null,null,null,"",null,"",null,null,null,null,null,"",null,"",null,"",null,"",null,"",""]
[null,null,null,"",null,"",null,null,null,null,null,"",null,"",null,"",null,"",null,"",""]
[null,null,null,"",null,"",null,null,null,null,null,"",null,"",null,"",null,"",null,"",""]
[null,null,null,"",null,"",null,null,null,null,null,"",null,"",null,"",null,"",null,"",""]
[null,null,null,"",null,"",null,null,null,null,null,"",null,"",null,"",null,"",null,"",""]
[null,null,null,"",null,"",null,null,null,null,null,"",null,"",null,"",null,"",null,"",""]
[null,null,null,"",null,"",null,null,null,null,null,"",null,"",null,"",null,"",null,"",""]
[null,null,null,"",null,"",null,null,null,null,null,"",null,"",null,"",null,"",null,"",""]
[null,null,null,"",null,"",null,null,null,null,null,"",null,"",null,"",null,"",null,"",""]
[null,null,null,"",null,"",null,null,null,null,null,"",null,"",null,"",null,"",null,"",""]
[null,null,null,"",null,"",null,null,null,null,null,"",null,"",null,"",null,"",null,"",""]
[null,null,null,"",null,"",null,null,null,null,null,"",null,"",null,"",null,"",null,"",""]
[null,null,null,"",null,"",null,null,null,null,null,"",null,"",null,"",null,"",null,"",""]
[null,null,null,"",null,"",null,null,null,null,null,"",null,"",null,"",null,"",null,"",""]
[null,null,null,"",null,"",null,null,null,null,null,"",null,"",null,"",null,"",null,"",""]
[null,null,null,"",null,"",null,null,null,null,null,"",null,"",null,"",null,"",null,"",""]
[null,null,null,"",null,"",null,null,null,null,null,"",null,"",null,"",null,"",null,"",""]
[null,null,null,"",null,"",null,null,null,null,null,"",null,"",null,"",null,"",null,"",""]
[null,null,null,"",null,"",null,null,null,null,null,"",null,"",null,"",null,"",null,"",""]
[null,null,null,"",null,"",null,null,null,null,null,"",null,"",null,"",null,"",null,"",""]
[null,null,null,"",null,"",null,null,null,null,null,"",null,"",null,"",null,"",null,"",""]
[null,null,null,"",null,"",null,null,null,null,null,"",null,"",null,"",null,"",null,"",""]
[null,null,null,"",null,"",null,null,null,null,null,"",null,"",null,"",null,"",null,"",""]
[null,null,null,"",null,"",null,null,null,null,null,"",null,"",null,"",null,"",null,"",""]
[null,null,null,"",null,"",null,null,null,null,null,"",null,"",null,"",null,"",null,"",""]
[null,null,null,"",null,"",null,null,null,null,null,"",null,"",null,"",null,"",null,"",""]
[null,null,null,"",null,"",null,null,null,null,null,"",null,"",null,"",null,"",null,"",""]
[null,null,null,"",null,"",null,null,null,null,null,"",null,"",null,"",null,"",null,"",""]
[null,null,null,"",null,"",null,null,null,null,null,"",null,"",null,"",null,"",null,"",""]
[null,null,null,"",null,"",null,null,null,null,null,"",null,"",null,"",null,"",null,"",""]
[null,null,null,"",null,"",null,null,null,null,null,"",null,"",null,"",null,"",null,"",""]
[null,null,null,"",null,{"$f":"IF(C395=\"\",\"\",IF($F$5<$F$4,D395-C395,D395+C395))","v":""},null,null,null,null,null,{"$f":"IF(OR($D395=\"\",$D395=\"Exemption\",L$4=0),\"\",ROUND($C395*$F$2/9*L$5/2000*L$4,2))","v":""},null,{"$f":"IF(OR($D395=\"\",$D395=\"Exemption\",N$4=0),\"\",ROUND($C395*$F$2/9*N$5/2000*N$4,2))","v":""},null,{"$f":"IF(OR($D395=\"\",$D395=\"Exemption\",P$4=0),\"\",ROUND($C395*$F$2/9*P$5/2000*P$4,2))","v":""},null,{"$f":"IF(OR($D395=\"\",$D395=\"Exemption\",R$4=0),\"\",ROUND($C395*$F$2/9*R$5/2000*R$4,2))","v":""},null,{"$f":"IF(OR($D395=\"\",$D395=\"Exemption\",T$4=0),\"\",ROUND($C395*$F$2/9*T$5/2000*T$4,2))","v":""},""]
[null,null,null,{"$f":"+IF(A396=\"\",\"\",IF($F$5<$F$4,D395-(A396-A395),D395+(A396-A395)))","v":""},null,"",null,null,null,null,null,"",null,"",null,"",null,"",null,"",""]
[null,null,null,"",null,"",null,null,null,null,null,"",null,"",null,"",null,"",null,"",""]
[null,null,null,"",null,"",null,null,null,null,null,"",null,"",null,"",null,"",null,"",""]
[null,null,null,"",null,"",null,null,null,null,null,"",null,"",null,"",null,"",null,"",""]
[null,null,null,"",null,"",null,null,null,null,null,"",null,"",null,"",null,"",null,"",""]
[null,null,null,"",null,"",null,null,null,null,null,"",null,"",null,"",null,"",null,"",""]
[null,null,null,"",null,"",null,null,null,null,null,"",null,"",null,"",null,"",null,"",""]
[null,null,null,"",null,"",null,null,null,null,null,"",null,"",null,"",null,"",null,"",""]
[null,null,null,"",null,"",null,null,null,null,null,"",null,"",null,"",null,"",null,"",""]
[null,null,null,"",null,"",null,null,null,null,null,"",null,"",null,"",null,"",null,"",""]
[null,null,null,"",null,"",null,null,null,null,null,"",null,"",null,"",null,"",null,"",""]
[null,null,null,"",null,"",null,null,null,null,null,"",null,"",null,"",null,"",null,"",""]
[null,null,null,"",null,"",null,null,null,null,null,"",null,"",null,"",null,"",null,"",""]
[null,null,null,"",null,"",null,null,null,null,null,"",null,"",null,"",null,"",null,"",""]
[null,null,null,"",null,"",null,null,null,null,null,"",null,"",null,"",null,"",null,"",""]
[null,null,null,"",null,"",null,null,null,null,null,"",null,"",null,"",null,"",null,"",""]
[null,null,null,"",null,"",null,null,null,null,null,"",null,"",null,"",null,"",null,"",""]
[null,null,null,"",null,"",null,null,null,null,null,"",null,"",null,"",null,"",null,"",""]
[null,null,null,"",null,"",null,null,null,null,null,"",null,"",null,"",null,"",null,"",""]
[null,null,null,"",null,"",null,null,null,null,null,"",null,"",null,"",null,"",null,"",""]
[null,null,null,"",null,"",null,null,null,null,null,"",null,"",null,"",null,"",null,"",""]
[null,null,null,"",null,"",null,null,null,null,null,"",null,"",null,"",null,"",null,"",""]
[null,null,null,"",null,"",null,null,null,null,null,"",null,"",null,"",null,"",null,"",""]
[null,null,null,"",null,"",null,null,null,null,null,"",null,"",null,"",null,"",null,"",""]
[null,null,null,"",null,"",null,null,null,null,null,"",null,"",null,"",null,"",null,"",""]
[null,null,null,"",null,"",null,null,null,null,null,"",null,"",null,"",null,"",null,"",""]
[null,null,null,"",null,"",null,null,null,null,null,"",null,"",null,"",null,"",null,"",""]
[null,null,null,"",null,"",null,null,null,null,null,"",null,"",null,"",null,"",null,"",{"$f":"IF($J423=\"\",\"\",ROUND((($J423-1)*SUM(P423,R423,T423,N423,L423)),2))","v":""}]
[null,null,null,"",null,"",null,null,null,null,null,"",null,"",null,"",null,"",null,"",""]
[null,null,null,"",null,"",null,null,null,null,null,"",null,"",null,"",null,"",null,"",""]
[null,null,null,"",null,"",null,null,null,null,null,"",null,"",null,"",null,"",null,"",""]
[null,null,null,"",null,"",null,null,null,null,null,"",null,"",null,"",null,"",null,"",""]
[null,null,null,"",null,"",null,null,null,null,null,"",null,"",null,"",null,"",null,"",""]
[null,null,null,"",null,"",null,null,null,null,null,"",null,"",null,"",null,"",null,"",""]
[null,null,null,"",null,"",null,null,null,null,null,"",null,"",null,"",null,"",null,"",""]
[null,null,null,"",null,"",null,null,null,null,null,"",null,"",null,"",null,"",null,"",""]
[null,null,null,"",null,"",null,null,null,null,null,"",null,"",null,"",null,"",null,"",""]
[null,null,null,"",null,"",null,null,null,null,null,"",null,"",null,"",null,"",null,"",""]
[null,null,null,"",null,"",null,null,null,null,null,"",null,"",null,"",null,"",null,"",""]
[null,null,null,"",null,"",null,null,null,null,null,"",null,"",null,"",null,"",null,"",""]
[null,null,null,"",null,"",null,null,null,null,null,"",null,"",null,"",null,"",null,"",""]
[null,null,null,"",null,"",null,null,null,null,null,"",null,"",null,"",null,"",null,"",""]
[null,null,null,"",null,"",null,null,null,null,null,"",null,"",null,"",null,"",null,"",""]
[null,null,null,"",null,"",null,null,null,null,null,"",null,"",null,"",null,"",null,"",""]
[null,null,null,"",null,"",null,null,null,null,null,"",null,"",null,"",null,"",null,"",""]
[null,null,null,"",null,"",null,null,null,null,null,"",null,"",null,"",null,"",null,"",""]
[null,null,null,"",null,"",null,null,null,null,null,"",null,"",null,"",null,"",null,"",""]
[null,null,null,"",null,"",null,null,null,null,null,"",null,"",null,"",null,"",null,"",""]
[null,null,null,"",null,"",null,null,null,null,null,"",null,"",null,"",null,"",null,"",""]
[null,null,null,"",null,"",null,null,null,null,null,"",null,"",null,"",null,"",null,"",""]
[null,null,null,"",null,"",null,null,null,null,null,"",null,"",null,"",null,"",null,"",""]
[null,null,null,"",null,"",null,null,null,null,null,"",null,"",null,"",null,"",null,"",""]
[null,null,null,"",null,"",null,null,null,null,null,"",null,"",null,"",null,"",null,"",""]
[null,null,null,"",null,"",null,null,null,null,null,"",null,"",null,"",null,"",null,"",""]
[null,null,null,"",null,"",null,null,null,null,null,"",null,"",null,"",null,"",null,"",""]
[null,null,null,"",null,"",null,null,null,null,null,"",null,"",null,"",null,"",null,"",""]
[null,null,null,"",null,"",null,null,null,null,null,"",null,"",null,"",null,"",null,"",""]
[null,null,null,"",null,"",null,null,null,null,null,"",null,"",null,"",null,"",null,"",""]
[null,null,null,"",null,"",null,null,null,null,null,"",null,"",null,"",null,"",null,"",""]
[null,null,null,"",null,"",null,null,null,null,null,"",null,"",null,"",null,"",null,"",""]
[null,null,null,"",null,"",null,null,null,null,null,"",null,"",null,"",null,"",null,"",""]
[null,null,null,"",null,"",null,null,null,null,null,"",null,"",null,"",null,"",null,"",""]
[null,null,null,"",null,"",null,null,null,null,null,"",null,"",null,"",null,"",null,"",""]
[null,null,null,"",null,{"$f":"IF(C459=\"\",\"\",IF($F$5<$F$4,D459-C459,D459+C459))","v":""},null,null,null,null,null,{"$f":"IF(OR($D459=\"\",$D459=\"Exemption\",L$4=0),\"\",ROUND($C459*$F$2/9*L$5/2000*L$4,2))","v":""},null,{"$f":"IF(OR($D459=\"\",$D459=\"Exemption\",N$4=0),\"\",ROUND($C459*$F$2/9*N$5/2000*N$4,2))","v":""},null,{"$f":"IF(OR($D459=\"\",$D459=\"Exemption\",P$4=0),\"\",ROUND($C459*$F$2/9*P$5/2000*P$4,2))","v":""},null,{"$f":"IF(OR($D459=\"\",$D459=\"Exemption\",R$4=0),\"\",ROUND($C459*$F$2/9*R$5/2000*R$4,2))","v":""},null,{"$f":"IF(OR($D459=\"\",$D459=\"Exemption\",T$4=0),\"\",ROUND($C459*$F$2/9*T$5/2000*T$4,2))","v":""},""]
[null,null,null,{"$f":"+IF(A460=\"\",\"\",IF($F$5<$F$4,D459-(A460-A459),D459+(A460-A459)))","v":""},null,"",null,null,null,null,null,"",null,"",null,"",null,"",null,"",""]
[null,null,null,"",null,"",null,null,null,null,null,"",null,"",null,"",null,"",null,"",""]
[null,null,null,"",null,"",null,null,null,null,null,"",null,"",null,"",null,"",null,"",""]
[null,null,null,"",null,"",null,null,null,null,null,"",null,"",null,"",null,"",null,"",""]
[null,null,null,"",null,"",null,null,null,null,null,"",null,"",null,"",null,"",null,"",""]
[null,null,null,"",null,"",null,null,null,null,null,"",null,"",null,"",null,"",null,"",""]
[null,null,null,"",null,"",null,null,null,null,null,"",null,"",null,"",null,"",null,"",""]
[null,null,null,"",null,"",null,null,null,null,null,"",null,"",null,"",null,"",null,"",""]
[null,null,null,"",null,"",null,null,null,null,null,"",null,"",null,"",null,"",null,"",""]
[null,null,null,"",null,"",null,null,null,null,null,"",null,"",null,"",null,"",null,"",""]
[null,null,null,"",null,"",null,null,null,null,null,"",null,"",null,"",null,"",null,"",""]
[null,null,null,"",null,"",null,null,null,null,null,"",null,"",null,"",null,"",null,"",""]
[null,null,null,"",null,"",null,null,null,null,null,"",null,"",null,"",null,"",null,"",""]
[null,null,null,"",null,"",null,null,null,null,null,"",null,"",null,"",null,"",null,"",""]
[null,null,null,"",null,"",null,null,null,null,null,"",null,"",null,"",null,"",null,"",""]
[null,null,null,"",null,"",null,null,null,null,null,"",null,"",null,"",null,"",null,"",""]
[null,null,null,"",null,"",null,null,null,null,null,"",null,"",null,"",null,"",null,"",""]
[null,null,null,"",null,"",null,null,null,null,null,"",null,"",null,"",null,"",null,"",""]
[null,null,null,"",null,"",null,null,null,null,null,"",null,"",null,"",null,"",null,"",""]
[null,null,null,"",null,"",null,null,null,null,null,"",null,"",null,"",null,"",null,"",""]
[null,null,null,"",null,"",null,null,null,null,null,"",null,"",null,"",null,"",null,"",""]
[null,null,null,"",null,"",null,null,null,null,null,"",null,"",null,"",null,"",null,"",""]
[null,null,null,"",null,"",null,null,null,null,null,"",null,"",null,"",null,"",null,"",""]
[null,null,null,"",null,"",null,null,null,null,null,"",null,"",null,"",null,"",null,"",""]
[null,null,null,"",null,"",null,null,null,null,null,"",null,"",null,"",null,"",null,"",""]
[null,null,null,"",null,"",null,null,null,null,null,"",null,"",null,"",null,"",null,"",""]
[null,null,null,"",null,"",null,null,null,null,null,"",null,"",null,"",null,"",null,"",""]
[null,null,null,"",null,"",null,null,null,null,null,"",null,"",null,"",null,"",null,"",{"$f":"IF($J487=\"\",\"\",ROUND((($J487-1)*SUM(P487,R487,T487,N487,L487)),2))","v":""}]
[null,null,null,"",null,"",null,null,null,null,null,"",null,"",null,"",null,"",null,"",""]
[null,null,null,"",null,"",null,null,null,null,null,"",null,"",null,"",null,"",null,"",""]
[null,null,null,"",null,"",null,null,null,null,null,"",null,"",null,"",null,"",null,"",""]
[null,null,null,"",null,"",null,null,null,null,null,"",null,"",null,"",null,"",null,"",""]
[null,null,null,"",null,"",null,null,null,null,null,"",null,"",null,"",null,"",null,"",""]
[null,null,null,"",null,"",null,null,null,null,null,"",null,"",null,"",null,"",null,"",""]
[null,null,null,"",null,"",null,null,null,null,null,"",null,"",null,"",null,"",null,"",""]
[null,null,null,"",null,"",null,null,null,null,null,"",null,"",null,"",null,"",null,"",""]
[null,null,null,"",null,"",null,null,null,null,null,"",null,"",null,"",null,"",null,"",""]
[null,null,null,"",null,"",null,null,null,null,null,"",null,"",null,"",null,"",null,"",""]
[null,null,null,"",null,"",null,null,null,null,null,"",null,"",null,"",null,"",null,"",""]
[null,null,null,"",null,"",null,null,null,null,null,"",null,"",null,"",null,"",null,"",""]
[null,null,null,"",null,"",null,null,null,null,null,"",null,"",null,"",null,"",null,"",""]
[null,null,null,"",null,"",null,null,null,null,null,"",null,"",null,"",null,"",null,"",""]
[null,null,null,"",null,"",null,null,null,null,null,"",null,"",null,"",null,"",null,"",""]
[null,null,null,"",null,"",null,null,null,null,null,"",null,"",null,"",null,"",null,"",""]
[null,null,null,"",null,"",null,null,null,null,null,"",null,"",null,"",null,"",null,"",""]
[null,null,null,"",null,"",null,null,null,null,null,"",null,"",null,"",null,"",null,"",""]
[null,null,null,"",null,"",null,null,null,null,null,"",null,"",null,"",null,"",null,"",""]
[null,null,null,"",null,"",null,null,null,null,null,"",null,"",null,"",null,"",null,"",""]
[null,null,null,"",null,"",null,null,null,null,null,"",null,"",null,"",null,"",null,"",""]
[null,null,null,"",null,"",null,null,null,null,null,"",null,"",null,"",null,"",null,"",""]
[null,null,null,"",null,"",null,null,null,null,null,"",null,"",null,"",null,"",null,"",""]
[null,null,null,"",null,"",null,null,null,null,null,"",null,"",null,"",null,"",null,"",""]
[null,null,null,"",null,"",null,null,null,null,null,"",null,"",null,"",null,"",null,"",""]
[null,null,null,"",null,"",null,null,null,null,null,"",null,"",null,"",null,"",null,"",""]
[null,null,null,"",null,"",null,null,null,null,null,"",null,"",null,"",null,"",null,"",""]
[null,null,null,"",null,"",null,null,null,null,null,"",null,"",null,"",null,"",null,"",""]
[null,null,null,"",null,"",null,null,null,null,null,"",null,"",null,"",null,"",null,"",""]
[null,null,null,"",null,"",null,null,null,null,null,"",null,"",null,"",null,"",null,"",""]
[null,null,null,"",null,"",null,null,null,null,null,"",null,"",null,"",null,"",null,"",""]
[null,null,null,"",null,"",null,null,null,null,null,"",null,"",null,"",null,"",null,"",""]
[null,null,null,"",null,"",null,null,null,null,null,"",null,"",null,"",null,"",null,"",""]
[null,null,null,"",null,"",null,null,null,null,null,"",null,"",null,"",null,"",null,"",""]
[null,null,null,"",null,"",null,null,null,null,null,"",null,"",null,"",null,"",null,"",""]
[null,null,null,"",null,{"$f":"IF(C523=\"\",\"\",IF($F$5<$F$4,D523-C523,D523+C523))","v":""},null,null,null,null,null,{"$f":"IF(OR($D523=\"\",$D523=\"Exemption\",L$4=0),\"\",ROUND($C523*$F$2/9*L$5/2000*L$4,2))","v":""},null,{"$f":"IF(OR($D523=\"\",$D523=\"Exemption\",N$4=0),\"\",ROUND($C523*$F$2/9*N$5/2000*N$4,2))","v":""},null,{"$f":"IF(OR($D523=\"\",$D523=\"Exemption\",P$4=0),\"\",ROUND($C523*$F$2/9*P$5/2000*P$4,2))","v":""},null,{"$f":"IF(OR($D523=\"\",$D523=\"Exemption\",R$4=0),\"\",ROUND($C523*$F$2/9*R$5/2000*R$4,2))","v":""},null,{"$f":"IF(OR($D523=\"\",$D523=\"Exemption\",T$4=0),\"\",ROUND($C523*$F$2/9*T$5/2000*T$4,2))","v":""},""]
[null,null,null,{"$f":"+IF(A524=\"\",\"\",IF($F$5<$F$4,D523-(A524-A523),D523+(A524-A523)))","v":""},null,"",null,null,null,null,null,"",null,"",null,"",null,"",null,"",""]
[null,null,null,"",null,"",null,null,null,null,null,"",null,"",null,"",null,"",null,"",""]
[null,null,null,"",null,"",null,null,null,null,null,"",null,"",null,"",null,"",null,"",""]
[null,null,null,"",null,"",null,null,null,null,null,"",null,"",null,"",null,"",null,"",""]
[null,null,null,"",null,"",null,null,null,null,null,"",null,"",null,"",null,"",null,"",""]
[null,null,null,"",null,"",null,null,null,null,null,"",null,"",null,"",null,"",null,"",""]
[null,null,null,"",null,"",null,null,null,null,null,"",null,"",null,"",null,"",null,"",""]
[null,null,null,"",null,"",null,null,null,null,null,"",null,"",null,"",null,"",null,"",""]
[null,null,null,"",null,"",null,null,null,null,null,"",null,"",null,"",null,"",null,"",""]
[null,null,null,"",null,"",null,null,null,null,null,"",null,"",null,"",null,"",null,"",""]
[null,null,null,"",null,"",null,null,null,null,null,"",null,"",null,"",null,"",null,"",""]
[null,null,null,"",null,"",null,null,null,null,null,"",null,"",null,"",null,"",null,"",""]
[null,null,null,"",null,"",null,null,null,null,null,"",null,"",null,"",null,"",null,"",""]
[null,null,null,"",null,"",null,null,null,null,null,"",null,"",null,"",null,"",null,"",""]
[null,null,null,"",null,"",null,null,null,null,null,"",null,"",null,"",null,"",null,"",""]
[null,null,null,"",null,"",null,null,null,null,null,"",null,"",null,"",null,"",null,"",""]
[null,null,null,"",null,"",null,null,null,null,null,"",null,"",null,"",null,"",null,"",""]
[null,null,null,"",null,"",null,null,null,null,null,"",null,"",null,"",null,"",null,"",""]
[null,null,null,"",null,"",null,null,null,null,null,"",null,"",null,"",null,"",null,"",""]
[null,null,null,"",null,"",null,null,null,null,null,"",null,"",null,"",null,"",null,"",""]
[null,null,null,"",null,"",null,null,null,null,null,"",null,"",null,"",null,"",null,"",""]
[null,null,null,"",null,"",null,null,null,null,null,"",null,"",null,"",null,"",null,"",""]
[null,null,null,"",null,"",null,null,null,null,null,"",null,"",null,"",null,"",null,"",""]
[null,null,null,"",null,"",null,null,null,null,null,"",null,"",null,"",null,"",null,"",""]
[null,null,null,"",null,"",null,null,null,null,null,"",null,"",null,"",null,"",null,"",""]
[null,null,null,"",null,"",null,null,null,null,null,"",null,"",null,"",null,"",null,"",""]
[null,null,null,"",null,"",null,null,null,null,null,"",null,"",null,"",null,"",null,"",""]
[null,null,null,"",null,"",null,null,null,null,null,"",null,"",null,"",null,"",null,"",{"$f":"IF($J551=\"\",\"\",ROUND((($J551-1)*SUM(P551,R551,T551,N551,L551)),2))","v":""}]
[null,null,null,"",null,"",null,null,null,null,null,"",null,"",null,"",null,"",null,"",""]
[null,null,null,"",null,"",null,null,null,null,null,"",null,"",null,"",null,"",null,"",""]
[null,null,null,"",null,"",null,null,null,null,null,"",null,"",null,"",null,"",null,"",""]
[null,null,null,"",null,"",null,null,null,null,null,"",null,"",null,"",null,"",null,"",""]
[null,null,null,"",null,"",null,null,null,null,null,"",null,"",null,"",null,"",null,"",""]
[null,null,null,"",null,"",null,null,null,null,null,"",null,"",null,"",null,"",null,"",""]
[null,null,null,"",null,"",null,null,null,null,null,"",null,"",null,"",null,"",null,"",""]
[null,null,null,"",null,"",null,null,null,null,null,"",null,"",null,"",null,"",null,"",""]
[null,null,null,"",null,"",null,null,null,null,null,"",null,"",null,"",null,"",null,"",""]
[null,null,null,"",null,"",null,null,null,null,null,"",null,"",null,"",null,"",null,"",""]
[null,null,null,"",null,"",null,null,null,null,null,"",null,"",null,"",null,"",null,"",""]
[null,null,null,"",null,"",null,null,null,null,null,"",null,"",null,"",null,"",null,"",""]
[null,null,null,"",null,"",null,null,null,null,null,"",null,"",null,"",null,"",null,"",""]
[null,null,null,"",null,"",null,null,null,null,null,"",null,"",null,"",null,"",null,"",""]
[null,null,null,"",null,"",null,null,null,null,null,"",null,"",null,"",null,"",null,"",""]
[null,null,null,"",null,"",null,null,null,null,null,"",null,"",null,"",null,"",null,"",""]
[null,null,null,"",null,"",null,null,null,null,null,"",null,"",null,"",null,"",null,"",""]
[null,null,null,"",null,"",null,null,null,null,null,"",null,"",null,"",null,"",null,"",""]
[null,null,null,"",null,"",null,null,null,null,null,"",null,"",null,"",null,"",null,"",""]
[null,null,null,"",null,"",null,null,null,null,null,"",null,"",null,"",null,"",null,"",""]
[null,null,null,"",null,"",null,null,null,null,null,"",null,"",null,"",null,"",null,"",""]
[null,null,null,"",null,"",null,null,null,null,null,"",null,"",null,"",null,"",null,"",""]
[null,null,null,"",null,"",null,null,null,null,null,"",null,"",null,"",null,"",null,"",""]
[null,null,null,"",null,"",null,null,null,null,null,"",null,"",null,"",null,"",null,"",""]
[null,null,null,"",null,"",null,null,null,null,null,"",null,"",null,"",null,"",null,"",""]
[null,null,null,"",null,"",null,null,null,null,null,"",null,"",null,"",null,"",null,"",""]
[null,null,null,"",null,"",null,null,null,null,null,"",null,"",null,"",null,"",null,"",""]
[null,null,null,"",null,"",null,null,null,null,null,"",null,"",null,"",null,"",null,"",""]
[null,null,null,"",null,"",null,null,null,null,null,"",null,"",null,"",null,"",null,"",""]
[null,null,null,"",null,"",null,null,null,null,null,"",null,"",null,"",null,"",null,"",""]
[null,null,null,"",null,"",null,null,null,null,null,"",null,"",null,"",null,"",null,"",""]
[null,null,null,"",null,"",null,null,null,null,null,"",null,"",null,"",null,"",null,"",""]
[null,null,null,"",null,"",null,null,null,null,null,"",null,"",null,"",null,"",null,"",""]
[null,null,null,"",null,"",null,null,null,null,null,"",null,"",null,"",null,"",null,"",""]
[null,null,null,"",null,"",null,null,null,null,null,"",null,"",null,"",null,"",null,"",""]
[null,null,null,"",null,{"$f":"IF(C587=\"\",\"\",IF($F$5<$F$4,D587-C587,D587+C587))","v":""},null,null,null,null,null,{"$f":"IF(OR($D587=\"\",$D587=\"Exemption\",L$4=0),\"\",ROUND($C587*$F$2/9*L$5/2000*L$4,2))","v":""},null,{"$f":"IF(OR($D587=\"\",$D587=\"Exemption\",N$4=0),\"\",ROUND($C587*$F$2/9*N$5/2000*N$4,2))","v":""},null,{"$f":"IF(OR($D587=\"\",$D587=\"Exemption\",P$4=0),\"\",ROUND($C587*$F$2/9*P$5/2000*P$4,2))","v":""},null,{"$f":"IF(OR($D587=\"\",$D587=\"Exemption\",R$4=0),\"\",ROUND($C587*$F$2/9*R$5/2000*R$4,2))","v":""},null,{"$f":"IF(OR($D587=\"\",$D587=\"Exemption\",T$4=0),\"\",ROUND($C587*$F$2/9*T$5/2000*T$4,2))","v":""},""]
[null,null,null,{"$f":"+IF(A588=\"\",\"\",IF($F$5<$F$4,D587-(A588-A587),D587+(A588-A587)))","v":""},null,"",null,null,null,null,null,"",null,"",null,"",null,"",null,"",""]
[null,null,null,"",null,"",null,null,null,null,null,"",null,"",null,"",null,"",null,"",""]
[null,null,null,"",null,"",null,null,null,null,null,"",null,"",null,"",null,"",null,"",""]
[null,null,null,"",null,"",null,null,null,null,null,"",null,"",null,"",null,"",null,"",""]
[null,null,null,"",null,"",null,null,null,null,null,"",null,"",null,"",null,"",null,"",""]
[null,null,null,"",null,"",null,null,null,null,null,"",null,"",null,"",null,"",null,"",""]
[null,null,null,"",null,"",null,null,null,null,null,"",null,"",null,"",null,"",null,"",""]
[null,null,null,"",null,"",null,null,null,null,null,"",null,"",null,"",null,"",null,"",""]
[null,null,null,"",null,"",null,null,null,null,null,"",null,"",null,"",null,"",null,"",""]
[null,null,null,"",null,"",null,null,null,null,null,"",null,"",null,"",null,"",null,"",""]
[null,null,null,"",null,"",null,null,null,null,null,"",null,"",null,"",null,"",null,"",""]
[null,null,null,"",null,"",null,null,null,null,null,"",null,"",null,"",null,"",null,"",""]
[null,null,null,"",null,"",null,null,null,null,null,"",null,"",null,"",null,"",null,"",""]
[null,null,null,"",null,"",null,null,null,null,null,"",null,"",null,"",null,"",null,"",""]
[null,null,null,"",null,"",null,null,null,null,null,"",null,"",null,"",null,"",null,"",""]
[null,null,null,"",null,"",null,null,null,null,null,"",null,"",null,"",null,"",null,"",""]
[null,null,null,"",null,"",null,null,null,null,null,"",null,"",null,"",null,"",null,"",""]
[null,null,null,"",null,"",null,null,null,null,null,"",null,"",null,"",null,"",null,"",""]
[null,null,null,"",null,"",null,null,null,null,null,"",null,"",null,"",null,"",null,"",""]
[null,null,null,"",null,"",null,null,null,null,null,"",null,"",null,"",null,"",null,"",""]
[null,null,null,"",null,"",null,null,null,null,null,"",null,"",null,"",null,"",null,"",""]
[null,null,null,"",null,"",null,null,null,null,null,"",null,"",null,"",null,"",null,"",""]
[null,null,null,"",null,"",null,null,null,null,null,"",null,"",null,"",null,"",null,"",""]
[null,null,null,"",null,"",null,null,null,null,null,"",null,"",null,"",null,"",null,"",""]
[null,null,null,"",null,"",null,null,null,null,null,"",null,"",null,"",null,"",null,"",""]
[null,null,null,"",null,"",null,null,null,null,null,"",null,"",null,"",null,"",null,"",""]
[null,null,null,"",null,"",null,null,null,null,null,"",null,"",null,"",null,"",null,"",""]
[null,null,null,"",null,"",null,null,null,null,null,"",null,"",null,"",null,"",null,"",{"$f":"IF($J615=\"\",\"\",ROUND((($J615-1)*SUM(P615,R615,T615,N615,L615)),2))","v":""}]
[null,null,null,"",null,"",null,null,null,null,null,"",null,"",null,"",null,"",null,"",""]
[null,null,null,"",null,"",null,null,null,null,null,"",null,"",null,"",null,"",null,"",""]
[null,null,null,"",null,"",null,null,null,null,null,"",null,"",null,"",null,"",null,"",""]
[null,null,null,"",null,"",null,null,null,null,null,"",null,"",null,"",null,"",null,"",""]
[null,null,null,"",null,"",null,null,null,null,null,"",null,"",null,"",null,"",null,"",""]
[null,null,null,"",null,"",null,null,null,null,null,"",null,"",null,"",null,"",null,"",""]
[null,null,null,"",null,"",null,null,null,null,null,"",null,"",null,"",null,"",null,"",""]
[null,null,null,"",null,"",null,null,null,null,null,"",null,"",null,"",null,"",null,"",""]
[null,null,null,"",null,"",null,null,null,null,null,"",null,"",null,"",null,"",null,"",""]
[null,null,null,"",null,"",null,null,null,null,null,"",null,"",null,"",null,"",null,"",""]
[null,null,null,"",null,"",null,null,null,null,null,"",null,"",null,"",null,"",null,"",""]
[null,null,null,"",null,"",null,null,null,null,null,"",null,"",null,"",null,"",null,"",""]
[null,null,null,"",null,"",null,null,null,null,null,"",null,"",null,"",null,"",null,"",""]
[null,null,null,"",null,"",null,null,null,null,null,"",null,"",null,"",null,"",null,"",""]
[null,null,null,"",null,"",null,null,null,null,null,"",null,"",null,"",null,"",null,"",""]
[null,null,null,"",null,"",null,null,null,null,null,"",null,"",null,"",null,"",null,"",""]
[null,null,null,"",null,"",null,null,null,null,null,"",null,"",null,"",null,"",null,"",""]
[null,null,null,"",null,"",null,null,null,null,null,"",null,"",null,"",null,"",null,"",""]
[null,null,null,"",null,"",null,null,null,null,null,"",null,"",null,"",null,"",null,"",""]
[null,null,null,"",null,"",null,null,null,null,null,"",null,"",null,"",null,"",null,"",""]
[null,null,null,"",null,"",null,null,null,null,null,"",null,"",null,"",null,"",null,"",""]
[null,null,null,"",null,"",null,null,null,null,null,"",null,"",null,"",null,"",null,"",""]
[null,null,null,"",null,"",null,null,null,null,null,"",null,"",null,"",null,"",null,"",""]
[null,null,null,"",null,"",null,null,null,null,null,"",null,"",null,"",null,"",null,"",""]
[null,null,null,"",null,"",null,null,null,null,null,"",null,"",null,"",null,"",null,"",""]
[null,null,null,"",null,"",null,null,null,null,null,"",null,"",null,"",null,"",null,"",""]
[null,null,null,"",null,"",null,null,null,null,null,"",null,"",null,"",null,"",null,"",""]
[null,null,null,"",null,"",null,null,null,null,null,"",null,"",null,"",null,"",null,"",""]
[null,null,null,"",null,"",null,null,null,null,null,"",null,"",null,"",null,"",null,"",""]
[null,null,null,"",null,"",null,null,null,null,null,"",null,"",null,"",null,"",null,"",""]
[null,null,null,"",null,"",null,null,null,null,null,"",null,"",null,"",null,"",null,"",""]
[null,null,null,"",null,"",null,null,null,null,null,"",null,"",null,"",null,"",null,"",""]
[null,null,null,"",null,"",null,null,null,null,null,"",null,"",null,"",null,"",null,"",""]
[null,null,null,"",null,"",null,null,null,null,null,"",null,"",null,"",null,"",null,"",""]
[null,null,null,"",null,"",null,null,null,null,null,"",null,"",null,"",null,"",null,"",""]
[null,null,null,"",null,{"$f":"IF(C651=\"\",\"\",IF($F$5<$F$4,D651-C651,D651+C651))","v":""},null,null,null,null,null,{"$f":"IF(OR($D651=\"\",$D651=\"Exemption\",L$4=0),\"\",ROUND($C651*$F$2/9*L$5/2000*L$4,2))","v":""},null,{"$f":"IF(OR($D651=\"\",$D651=\"Exemption\",N$4=0),\"\",ROUND($C651*$F$2/9*N$5/2000*N$4,2))","v":""},null,{"$f":"IF(OR($D651=\"\",$D651=\"Exemption\",P$4=0),\"\",ROUND($C651*$F$2/9*P$5/2000*P$4,2))","v":""},null,{"$f":"IF(OR($D651=\"\",$D651=\"Exemption\",R$4=0),\"\",ROUND($C651*$F$2/9*R$5/2000*R$4,2))","v":""},null,{"$f":"IF(OR($D651=\"\",$D651=\"Exemption\",T$4=0),\"\",ROUND($C651*$F$2/9*T$5/2000*T$4,2))","v":""},""]
[null,null,null,{"$f":"+IF(A652=\"\",\"\",IF($F$5<$F$4,D651-(A652-A651),D651+(A652-A651)))","v":""},null,"",null,null,null,null,null,"",null,"",null,"",null,"",null,"",""]
[null,null,null,"",null,"",null,null,null,null,null,"",null,"",null,"",null,"",null,"",""]
[null,null,null,"",null,"",null,null,null,null,null,"",null,"",null,"",null,"",null,"",""]
[null,null,null,"",null,"",null,null,null,null,null,"",null,"",null,"",null,"",null,"",""]
[null,null,null,"",null,"",null,null,null,null,null,"",null,"",null,"",null,"",null,"",""]
[null,null,null,"",null,"",null,null,null,null,null,"",null,"",null,"",null,"",null,"",""]
[null,null,null,"",null,"",null,null,null,null,null,"",null,"",null,"",null,"",null,"",""]
[null,null,null,"",null,"",null,null,null,null,null,"",null,"",null,"",null,"",null,"",""]
[null,null,null,"",null,"",null,null,null,null,null,"",null,"",null,"",null,"",null,"",""]
[null,null,null,"",null,"",null,null,null,null,null,"",null,"",null,"",null,"",null,"",""]
[null,null,null,"",null,"",null,null,null,null,null,"",null,"",null,"",null,"",null,"",""]
[null,null,null,"",null,"",null,null,null,null,null,"",null,"",null,"",null,"",null,"",""]
[null,null,null,"",null,"",null,null,null,null,null,"",null,"",null,"",null,"",null,"",""]
[null,null,null,"",null,"",null,null,null,null,null,"",null,"",null,"",null,"",null,"",""]
[null,null,null,"",null,"",null,null,null,null,null,"",null,"",null,"",null,"",null,"",""]
[null,null,null,"",null,"",null,null,null,null,null,"",null,"",null,"",null,"",null,"",""]
[null,null,null,"",null,"",null,null,null,null,null,"",null,"",null,"",null,"",null,"",""]
[null,null,null,"",null,"",null,null,null,null,null,"",null,"",null,"",null,"",null,"",""]
[null,null,null,"",null,"",null,null,null,null,null,"",null,"",null,"",null,"",null,"",""]
[null,null,null,"",null,"",null,null,null,null,null,"",null,"",null,"",null,"",null,"",""]
[null,null,null,"",null,"",null,null,null,null,null,"",null,"",null,"",null,"",null,"",""]
[null,null,null,"",null,"",null,null,null,null,null,"",null,"",null,"",null,"",null,"",""]
[null,null,null,"",null,"",null,null,null,null,null,"",null,"",null,"",null,"",null,"",""]
[null,null,null,"",null,"",null,null,null,null,null,"",null,"",null,"",null,"",null,"",""]
[null,null,null,"",null,"",null,null,null,null,null,"",null,"",null,"",null,"",null,"",""]
[null,null,null,"",null,"",null,null,null,null,null,"",null,"",null,"",null,"",null,"",""]
[null,null,null,"",null,"",null,null,null,null,null,"",null,"",null,"",null,"",null,"",""]
[null,null,null,"",null,"",null,null,null,null,null,"",null,"",null,"",null,"",null,"",{"$f":"IF($J679=\"\",\"\",ROUND((($J679-1)*SUM(P679,R679,T679,N679,L679)),2))","v":""}]
[null,null,null,"",null,"",null,null,null,null,null,"",null,"",null,"",null,"",null,"",""]
[null,null,null,"",null,"",null,null,null,null,null,"",null,"",null,"",null,"",null,"",""]
[null,null,null,"",null,"",null,null,null,null,null,"",null,"",null,"",null,"",null,"",""]
[null,null,null,"",null,"",null,null,null,null,null,"",null,"",null,"",null,"",null,"",""]
[null,null,null,"",null,"",null,null,null,null,null,"",null,"",null,"",null,"",null,"",""]
[null,null,null,"",null,"",null,null,null,null,null,"",null,"",null,"",null,"",null,"",""]
[null,null,null,"",null,"",null,null,null,null,null,"",null,"",null,"",null,"",null,"",""]
[null,null,null,"",null,"",null,null,null,null,null,"",null,"",null,"",null,"",null,"",""]
[null,null,null,"",null,"",null,null,null,null,null,"",null,"",null,"",null,"",null,"",""]
[null,null,null,"",null,"",null,null,null,null,null,"",null,"",null,"",null,"",null,"",""]
[null,null,null,"",null,"",null,null,null,null,null,"",null,"",null,"",null,"",null,"",""]
[null,null,null,"",null,"",null,null,null,null,null,"",null,"",null,"",null,"",null,"",""]
[null,null,null,"",null,"",null,null,null,null,null,"",null,"",null,"",null,"",null,"",""]
[null,null,null,"",null,"",null,null,null,null,null,"",null,"",null,"",null,"",null,"",""]
[null,null,null,"",null,"",null,null,null,null,null,"",null,"",null,"",null,"",null,"",""]
[null,null,null,"",null,"",null,null,null,null,null,"",null,"",null,"",null,"",null,"",""]
[null,null,null,"",null,"",null,null,null,null,null,"",null,"",null,"",null,"",null,"",""]
[null,null,null,"",null,"",null,null,null,null,null,"",null,"",null,"",null,"",null,"",""]
[null,null,null,"",null,"",null,null,null,null,null,"",null,"",null,"",null,"",null,"",""]
[null,null,null,"",null,"",null,null,null,null,null,"",null,"",null,"",null,"",null,"",""]
[null,null,null,"",null,"",null,null,null,null,null,"",null,"",null,"",null,"",null,"",""]
[null,null,null,"",null,"",null,null,null,null,null,"",null,"",null,"",null,"",null,"",""]
[null,null,null,"",null,"",null,null,null,null,null,"",null,"",null,"",null,"",null,"",""]
[null,null,null,"",null,"",null,null,null,null,null,"",null,"",null,"",null,"",null,"",""]
[null,null,null,"",null,"",null,null,null,null,null,"",null,"",null,"",null,"",null,"",""]
[null,null,null,"",null,"",null,null,null,null,null,"",null,"",null,"",null,"",null,"",""]
[null,null,null,"",null,"",null,null,null,null,null,"",null,"",null,"",null,"",null,"",""]
[null,null,null,"",null,"",null,null,null,null,null,"",null,"",null,"",null,"",null,"",""]
[null,null,null,"",null,"",null,null,null,null,null,"",null,"",null,"",null,"",null,"",""]
[null,null,null,"",null,"",null,null,null,null,null,"",null,"",null,"",null,"",null,"",""]
[null,null,null,"",null,"",null,null,null,null,null,"",null,"",null,"",null,"",null,"",""]
[null,null,null,"",null,"",null,null,null,null,null,"",null,"",null,"",null,"",null,"",""]
[null,null,null,"",null,"",null,null,null,null,null,"",null,"",null,"",null,"",null,"",""]
[null,null,null,"",null,"",null,null,null,null,null,"",null,"",null,"",null,"",null,"",""]
[null,null,null,"",null,"",null,null,null,null,null,"",null,"",null,"",null,"",null,"",""]
[null,null,null,"",null,{"$f":"IF(C715=\"\",\"\",IF($F$5<$F$4,D715-C715,D715+C715))","v":""},null,null,null,null,null,{"$f":"IF(OR($D715=\"\",$D715=\"Exemption\",L$4=0),\"\",ROUND($C715*$F$2/9*L$5/2000*L$4,2))","v":""},null,{"$f":"IF(OR($D715=\"\",$D715=\"Exemption\",N$4=0),\"\",ROUND($C715*$F$2/9*N$5/2000*N$4,2))","v":""},null,{"$f":"IF(OR($D715=\"\",$D715=\"Exemption\",P$4=0),\"\",ROUND($C715*$F$2/9*P$5/2000*P$4,2))","v":""},null,{"$f":"IF(OR($D715=\"\",$D715=\"Exemption\",R$4=0),\"\",ROUND($C715*$F$2/9*R$5/2000*R$4,2))","v":""},null,{"$f":"IF(OR($D715=\"\",$D715=\"Exemption\",T$4=0),\"\",ROUND($C715*$F$2/9*T$5/2000*T$4,2))","v":""},""]
[null,null,null,{"$f":"+IF(A716=\"\",\"\",IF($F$5<$F$4,D715-(A716-A715),D715+(A716-A715)))","v":""},null,"",null,null,null,null,null,"",null,"",null,"",null,"",null,"",""]
[null,null,null,"",null,"",null,null,null,null,null,"",null,"",null,"",null,"",null,"",""]
[null,null,null,"",null,"",null,null,null,null,null,"",null,"",null,"",null,"",null,"",""]
[null,null,null,"",null,"",null,null,null,null,null,"",null,"",null,"",null,"",null,"",""]
[null,null,null,"",null,"",null,null,null,null,null,"",null,"",null,"",null,"",null,"",""]
[null,null,null,"",null,"",null,null,null,null,null,"",null,"",null,"",null,"",null,"",""]
[null,null,null,"",null,"",null,null,null,null,null,"",null,"",null,"",null,"",null,"",""]
[null,null,null,"",null,"",null,null,null,null,null,"",null,"",null,"",null,"",null,"",""]
[null,null,null,"",null,"",null,null,null,null,null,"",null,"",null,"",null,"",null,"",""]
[null,null,null,"",null,"",null,null,null,null,null,"",null,"",null,"",null,"",null,"",""]
[null,null,null,"",null,"",null,null,null,null,null,"",null,"",null,"",null,"",null,"",""]
[null,null,null,"",null,"",null,null,null,null,null,"",null,"",null,"",null,"",null,"",""]
[null,null,null,"",null,"",null,null,null,null,null,"",null,"",null,"",null,"",null,"",""]
[null,null,null,"",null,"",null,null,null,null,null,"",null,"",null,"",null,"",null,"",""]
[null,null,null,"",null,"",null,null,null,null,null,"",null,"",null,"",null,"",null,"",""]
[null,null,null,"",null,"",null,null,null,null,null,"",null,"",null,"",null,"",null,"",""]
[null,null,null,"",null,"",null,null,null,null,null,"",null,"",null,"",null,"",null,"",""]
[null,null,null,"",null,"",null,null,null,null,null,"",null,"",null,"",null,"",null,"",""]
[null,null,null,"",null,"",null,null,null,null,null,"",null,"",null,"",null,"",null,"",""]
[null,null,null,"",null,"",null,null,null,null,null,"",null,"",null,"",null,"",null,"",""]
[null,null,null,"",null,"",null,null,null,null,null,"",null,"",null,"",null,"",null,"",""]
[null,null,null,"",null,"",null,null,null,null,null,"",null,"",null,"",null,"",null,"",""]
[null,null,null,"",null,"",null,null,null,null,null,"",null,"",null,"",null,"",null,"",""]
[null,null,null,"",null,"",null,null,null,null,null,"",null,"",null,"",null,"",null,"",""]
[null,null,null,"",null,"",null,null,null,null,null,"",null,"",null,"",null,"",null,"",""]
[null,null,null,"",null,"",null,null,null,null,null,"",null,"",null,"",null,"",null,"",""]
[null,null,null,"",null,"",null,null,null,null,null,"",null,"",null,"",null,"",null,"",""]
[null,null,null,"",null,"",null,null,null,null,null,"",null,"",null,"",null,"",null,"",{"$f":"IF($J743=\"\",\"\",ROUND((($J743-1)*SUM(P743,R743,T743,N743,L743)),2))","v":""}]
[null,null,null,"",null,"",null,null,null,null,null,"",null,"",null,"",null,"",null,"",""]
[null,null,null,"",null,"",null,null,null,null,null,"",null,"",null,"",null,"",null,"",""]
[null,null,null,"",null,"",null,null,null,null,null,"",null,"",null,"",null,"",null,"",""]
[null,null,null,"",null,"",null,null,null,null,null,"",null,"",null,"",null,"",null,"",""]
[null,null,null,"",null,"",null,null,null,null,null,"",null,"",null,"",null,"",null,"",""]
[null,null,null,"",null,"",null,null,null,null,null,"",null,"",null,"",null,"",null,"",""]
[null,null,null,"",null,"",null,null,null,null,null,"",null,"",null,"",null,"",null,"",""]
[null,null,null,"",null,"",null,null,null,null,null,"",null,"",null,"",null,"",null,"",""]
[null,null,null,"",null,"",null,null,null,null,null,"",null,"",null,"",null,"",null,"",""]
[null,null,null,"",null,"",null,null,null,null,null,"",null,"",null,"",null,"",null,"",""]
[null,null,null,"",null,"",null,null,null,null,null,"",null,"",null,"",null,"",null,"",""]
[null,null,null,"",null,"",null,null,null,null,null,"",null,"",null,"",null,"",null,"",""]
[null,null,null,"",null,"",null,null,null,null,null,"",null,"",null,"",null,"",null,"",""]
[null,null,null,"",null,"",null,null,null,null,null,"",null,"",null,"",null,"",null,"",""]
[null,null,null,"",null,"",null,null,null,null,null,"",null,"",null,"",null,"",null,"",""]
[null,null,null,"",null,"",null,null,null,null,null,"",null,"",null,"",null,"",null,"",""]
[null,null,null,"",null,"",null,null,null,null,null,"",null,"",null,"",null,"",null,"",""]
[null,null,null,"",null,"",null,null,null,null,null,"",null,"",null,"",null,"",null,"",""]
[null,null,null,"",null,"",null,null,null,null,null,"",null,"",null,"",null,"",null,"",""]
[null,null,null,"",null,"",null,null,null,null,null,"",null,"",null,"",null,"",null,"",""]
[null,null,null,"",null,"",null,null,null,null,null,"",null,"",null,"",null,"",null,"",""]
[null,null,null,"",null,"",null,null,null,null,null,"",null,"",null,"",null,"",null,"",""]
[null,null,null,"",null,"",null,null,null,null,null,"",null,"",null,"",null,"",null,"",""]
[null,null,null,"",null,"",null,null,null,null,null,"",null,"",null,"",null,"",null,"",""]
[null,null,null,"",null,"",null,null,null,null,null,"",null,"",null,"",null,"",null,"",""]
[null,null,null,"",null,"",null,null,null,null,null,"",null,"",null,"",null,"",null,"",""]
[null,null,null,"",null,"",null,null,null,null,null,"",null,"",null,"",null,"",null,"",""]
[null,null,null,"",null,"",null,null,null,null,null,"",null,"",null,"",null,"",null,"",""]
[null,null,null,"",null,"",null,null,null,null,null,"",null,"",null,"",null,"",null,"",""]
[null,null,null,"",null,"",null,null,null,null,null,"",null,"",null,"",null,"",null,"",""]
[null,null,null,"",null,"",null,null,null,null,null,"",null,"",null,"",null,"",null,"",""]
[null,null,null,"",null,"",null,null,null,null,null,"",null,"",null,"",null,"",null,"",""]
[null,null,null,"",null,"",null,null,null,null,null,"",null,"",null,"",null,"",null,"",""]
[null,null,null,"",null,"",null,null,null,null,null,"",null,"",null,"",null,"",null,"",""]
[null,null,null,"",null,"",null,null,null,null,null,"",null,"",null,"",null,"",null,"",""]
[null,null,null,"",null,{"$f":"IF(C779=\"\",\"\",IF($F$5<$F$4,D779-C779,D779+C779))","v":""},null,null,null,null,null,{"$f":"IF(OR($D779=\"\",$D779=\"Exemption\",L$4=0),\"\",ROUND($C779*$F$2/9*L$5/2000*L$4,2))","v":""},null,{"$f":"IF(OR($D779=\"\",$D779=\"Exemption\",N$4=0),\"\",ROUND($C779*$F$2/9*N$5/2000*N$4,2))","v":""},null,{"$f":"IF(OR($D779=\"\",$D779=\"Exemption\",P$4=0),\"\",ROUND($C779*$F$2/9*P$5/2000*P$4,2))","v":""},null,{"$f":"IF(OR($D779=\"\",$D779=\"Exemption\",R$4=0),\"\",ROUND($C779*$F$2/9*R$5/2000*R$4,2))","v":""},null,{"$f":"IF(OR($D779=\"\",$D779=\"Exemption\",T$4=0),\"\",ROUND($C779*$F$2/9*T$5/2000*T$4,2))","v":""},""]
[null,null,null,{"$f":"+IF(A780=\"\",\"\",IF($F$5<$F$4,D779-(A780-A779),D779+(A780-A779)))","v":""},null,"",null,null,null,null,null,"",null,"",null,"",null,"",null,"",""]
[null,null,null,"",null,"",null,null,null,null,null,"",null,"",null,"",null,"",null,"",""]
[null,null,null,"",null,"",null,null,null,null,null,"",null,"",null,"",null,"",null,"",""]
[null,null,null,"",null,"",null,null,null,null,null,"",null,"",null,"",null,"",null,"",""]
[null,null,null,"",null,"",null,null,null,null,null,"",null,"",null,"",null,"",null,"",""]
[null,null,null,"",null,"",null,null,null,null,null,"",null,"",null,"",null,"",null,"",""]
[null,null,null,"",null,"",null,null,null,null,null,"",null,"",null,"",null,"",null,"",""]
[null,null,null,"",null,"",null,null,null,null,null,"",null,"",null,"",null,"",null,"",""]
[null,null,null,"",null,"",null,null,null,null,null,"",null,"",null,"",null,"",null,"",""]
[null,null,null,"",null,"",null,null,null,null,null,"",null,"",null,"",null,"",null,"",""]
[null,null,null,"",null,"",null,null,null,null,null,"",null,"",null,"",null,"",null,"",""]
[null,null,null,"",null,"",null,null,null,null,null,"",null,"",null,"",null,"",null,"",""]
[null,null,null,"",null,"",null,null,null,null,null,"",null,"",null,"",null,"",null,"",""]
[null,null,null,"",null,"",null,null,null,null,null,"",null,"",null,"",null,"",null,"",""]
[null,null,null,"",null,"",null,null,null,null,null,"",null,"",null,"",null,"",null,"",""]
[null,null,null,"",null,"",null,null,null,null,null,"",null,"",null,"",null,"",null,"",""]
[null,null,null,"",null,"",null,null,null,null,null,"",null,"",null,"",null,"",null,"",""]
[null,null,null,"",null,"",null,null,null,null,null,"",null,"",null,"",null,"",null,"",""]
[null,null,null,"",null,"",null,null,null,null,null,"",null,"",null,"",null,"",null,"",""]
[null,null,null,"",null,"",null,null,null,null,null,"",null,"",null,"",null,"",null,"",""]
[null,null,null,"",null,"",null,null,null,null,null,"",null,"",null,"",null,"",null,"",""]
[null,null,null,"",null,"",null,null,null,null,null,"",null,"",null,"",null,"",null,"",""]
[null,null,null,"",null,"",null,null,null,null,null,"",null,"",null,"",null,"",null,"",""]
[null,null,null,"",null,"",null,null,null,null,null,"",null,"",null,"",null,"",null,"",""]
[null,null,null,"",null,"",null,null,null,null,null,"",null,"",null,"",null,"",null,"",""]
[null,null,null,"",null,"",null,null,null,null,null,"",null,"",null,"",null,"",null,"",""]
[null,null,null,"",null,"",null,null,null,null,null,"",null,"",null,"",null,"",null,"",""]
[null,null,null,"",null,"",null,null,null,null,null,"",null,"",null,"",null,"",null,"",{"$f":"IF($J807=\"\",\"\",ROUND((($J807-1)*SUM(P807,R807,T807,N807,L807)),2))","v":""}]
[null,null,null,"",null,"",null,null,null,null,null,"",null,"",null,"",null,"",null,"",""]
[null,null,null,"",null,"",null,null,null,null,null,"",null,"",null,"",null,"",null,"",""]
[null,null,null,"",null,"",null,null,null,null,null,"",null,"",null,"",null,"",null,"",""]
[null,null,null,"",null,"",null,null,null,null,null,"",null,"",null,"",null,"",null,"",""]
[null,null,null,"",null,"",null,null,null,null,null,"",null,"",null,"",null,"",null,"",""]
[null,null,null,"",null,"",null,null,null,null,null,"",null,"",null,"",null,"",null,"",""]
[null,null,null,"",null,"",null,null,null,null,null,"",null,"",null,"",null,"",null,"",""]
[null,null,null,"",null,"",null,null,null,null,null,"",null,"",null,"",null,"",null,"",""]
[null,null,null,"",null,"",null,null,null,null,null,"",null,"",null,"",null,"",null,"",""]
[null,null,null,"",null,"",null,null,null,null,null,"",null,"",null,"",null,"",null,"",""]
[null,null,null,"",null,"",null,null,null,null,null,"",null,"",null,"",null,"",null,"",""]
[null,null,null,"",null,"",null,null,null,null,null,"",null,"",null,"",null,"",null,"",""]
[null,null,null,"",null,"",null,null,null,null,null,"",null,"",null,"",null,"",null,"",""]
[null,null,null,"",null,"",null,null,null,null,null,"",null,"",null,"",null,"",null,"",""]
[null,null,null,"",null,"",null,null,null,null,null,"",null,"",null,"",null,"",null,"",""]
[null,null,null,"",null,"",null,null,null,null,null,"",null,"",null,"",null,"",null,"",""]
[null,null,null,"",null,"",null,null,null,null,null,"",null,"",null,"",null,"",null,"",""]
[null,null,null,"",null,"",null,null,null,null,null,"",null,"",null,"",null,"",null,"",""]
[null,null,null,"",null,"",null,null,null,null,null,"",null,"",null,"",null,"",null,"",""]
[null,null,null,"",null,"",null,null,null,null,null,"",null,"",null,"",null,"",null,"",""]
[null,null,null,"",null,"",null,null,null,null,null,"",null,"",null,"",null,"",null,"",""]
[null,null,null,"",null,"",null,null,null,null,null,"",null,"",null,"",null,"",null,"",""]
[null,null,null,"",null,"",null,null,null,null,null,"",null,"",null,"",null,"",null,"",""]
[null,null,null,"",null,"",null,null,null,null,null,"",null,"",null,"",null,"",null,"",""]
[null,null,null,"",null,"",null,null,null,null,null,"",null,"",null,"",null,"",null,"",""]
[null,null,null,"",null,"",null,null,null,null,null,"",null,"",null,"",null,"",null,"",""]
[null,null,null,"",null,"",null,null,null,null,null,"",null,"",null,"",null,"",null,"",""]
[null,null,null,"",null,"",null,null,null,null,null,"",null,"",null,"",null,"",null,"",""]
[null,null,null,"",null,"",null,null,null,null,null,"",null,"",null,"",null,"",null,"",""]
[null,null,null,"",null,"",null,null,null,null,null,"",null,"",null,"",null,"",null,"",""]
[null,null,null,"",null,"",null,null,null,null,null,"",null,"",null,"",null,"",null,"",""]
[null,null,null,"",null,"",null,null,null,null,null,"",null,"",null,"",null,"",null,"",""]
[null,null,null,"",null,"",null,null,null,null,null,"",null,"",null,"",null,"",null,"",""]
[null,null,null,"",null,"",null,null,null,null,null,"",null,"",null,"",null,"",null,"",""]
[null,null,null,"",null,"",null,null,null,null,null,"",null,"",null,"",null,"",null,"",""]
[null,null,null,"",null,{"$f":"IF(C843=\"\",\"\",IF($F$5<$F$4,D843-C843,D843+C843))","v":""},null,null,null,null,null,{"$f":"IF(OR($D843=\"\",$D843=\"Exemption\",L$4=0),\"\",ROUND($C843*$F$2/9*L$5/2000*L$4,2))","v":""},null,{"$f":"IF(OR($D843=\"\",$D843=\"Exemption\",N$4=0),\"\",ROUND($C843*$F$2/9*N$5/2000*N$4,2))","v":""},null,{"$f":"IF(OR($D843=\"\",$D843=\"Exemption\",P$4=0),\"\",ROUND($C843*$F$2/9*P$5/2000*P$4,2))","v":""},null,{"$f":"IF(OR($D843=\"\",$D843=\"Exemption\",R$4=0),\"\",ROUND($C843*$F$2/9*R$5/2000*R$4,2))","v":""},null,{"$f":"IF(OR($D843=\"\",$D843=\"Exemption\",T$4=0),\"\",ROUND($C843*$F$2/9*T$5/2000*T$4,2))","v":""},""]
[null,null,null,{"$f":"+IF(A844=\"\",\"\",IF($F$5<$F$4,D843-(A844-A843),D843+(A844-A843)))","v":""},null,"",null,null,null,null,null,"",null,"",null,"",null,"",null,"",""]
[null,null,null,"",null,"",null,null,null,null,null,"",null,"",null,"",null,"",null,"",""]
[null,null,null,"",null,"",null,null,null,null,null,"",null,"",null,"",null,"",null,"",""]
[null,null,null,"",null,"",null,null,null,null,null,"",null,"",null,"",null,"",null,"",""]
[null,null,null,"",null,"",null,null,null,null,null,"",null,"",null,"",null,"",null,"",""]
[null,null,null,"",null,"",null,null,null,null,null,"",null,"",null,"",null,"",null,"",""]
[null,null,null,"",null,"",null,null,null,null,null,"",null,"",null,"",null,"",null,"",""]
[null,null,null,"",null,"",null,null,null,null,null,"",null,"",null,"",null,"",null,"",""]
[null,null,null,"",null,"",null,null,null,null,null,"",null,"",null,"",null,"",null,"",""]
[null,null,null,"",null,"",null,null,null,null,null,"",null,"",null,"",null,"",null,"",""]
[null,null,null,"",null,"",null,null,null,null,null,"",null,"",null,"",null,"",null,"",""]
[null,null,null,"",null,"",null,null,null,null,null,"",null,"",null,"",null,"",null,"",""]
[null,null,null,"",null,"",null,null,null,null,null,"",null,"",null,"",null,"",null,"",""]
[null,null,null,"",null,"",null,null,null,null,null,"",null,"",null,"",null,"",null,"",""]
[null,null,null,"",null,"",null,null,null,null,null,"",null,"",null,"",null,"",null,"",""]
[null,null,null,"",null,"",null,null,null,null,null,"",null,"",null,"",null,"",null,"",""]
[null,null,null,"",null,"",null,null,null,null,null,"",null,"",null,"",null,"",null,"",""]
[null,null,null,"",null,"",null,null,null,null,null,"",null,"",null,"",null,"",null,"",""]
[null,null,null,"",null,"",null,null,null,null,null,"",null,"",null,"",null,"",null,"",""]
[null,null,null,"",null,"",null,null,null,null,null,"",null,"",null,"",null,"",null,"",""]
[null,null,null,"",null,"",null,null,null,null,null,"",null,"",null,"",null,"",null,"",""]
[null,null,null,"",null,"",null,null,null,null,null,"",null,"",null,"",null,"",null,"",""]
[null,null,null,"",null,"",null,null,null,null,null,"",null,"",null,"",null,"",null,"",""]
[null,null,null,"",null,"",null,null,null,null,null,"",null,"",null,"",null,"",null,"",""]
[null,null,null,"",null,"",null,null,null,null,null,"",null,"",null,"",null,"",null,"",""]
[null,null,null,"",null,"",null,null,null,null,null,"",null,"",null,"",null,"",null,"",""]
[null,null,null,"",null,"",null,null,null,null,null,"",null,"",null,"",null,"",null,"",""]
[null,null,null,"",null,"",null,null,null,null,null,"",null,"",null,"",null,"",null,"",{"$f":"IF($J871=\"\",\"\",ROUND((($J871-1)*SUM(P871,R871,T871,N871,L871)),2))","v":""}]
[null,null,null,"",null,"",null,null,null,null,null,"",null,"",null,"",null,"",null,"",""]
[null,null,null,"",null,"",null,null,null,null,null,"",null,"",null,"",null,"",null,"",""]
[null,null,null,"",null,"",null,null,null,null,null,"",null,"",null,"",null,"",null,"",""]
[null,null,null,"",null,"",null,null,null,null,null,"",null,"",null,"",null,"",null,"",""]
[null,null,null,"",null,"",null,null,null,null,null,"",null,"",null,"",null,"",null,"",""]
[null,null,null,"",null,"",null,null,null,null,null,"",null,"",null,"",null,"",null,"",""]
[null,null,null,"",null,"",null,null,null,null,null,"",null,"",null,"",null,"",null,"",""]
[null,null,null,"",null,"",null,null,null,null,null,"",null,"",null,"",null,"",null,"",""]
[null,null,null,"",null,"",null,null,null,null,null,"",null,"",null,"",null,"",null,"",""]
[null,null,null,"",null,"",null,null,null,null,null,"",null,"",null,"",null,"",null,"",""]
[null,null,null,"",null,"",null,null,null,null,null,"",null,"",null,"",null,"",null,"",""]
[null,null,null,"",null,"",null,null,null,null,null,"",null,"",null,"",null,"",null,"",""]
[null,null,null,"",null,"",null,null,null,null,null,"",null,"",null,"",null,"",null,"",""]
[null,null,null,"",null,"",null,null,null,null,null,"",null,"",null,"",null,"",null,"",""]
[null,null,null,"",null,"",null,null,null,null,null,"",null,"",null,"",null,"",null,"",""]
[null,null,null,"",null,"",null,null,null,null,null,"",null,"",null,"",null,"",null,"",""]
[null,null,null,"",null,"",null,null,null,null,null,"",null,"",null,"",null,"",null,"",""]
[null,null,null,"",null,"",null,null,null,null,null,"",null,"",null,"",null,"",null,"",""]
[null,null,null,"",null,"",null,null,null,null,null,"",null,"",null,"",null,"",null,"",""]
[null,null,null,"",null,"",null,null,null,null,null,"",null,"",null,"",null,"",null,"",""]
[null,null,null,"",null,"",null,null,null,null,null,"",null,"",null,"",null,"",null,"",""]
[null,null,null,"",null,"",null,null,null,null,null,"",null,"",null,"",null,"",null,"",""]
[null,null,null,"",null,"",null,null,null,null,null,"",null,"",null,"",null,"",null,"",""]
[null,null,null,"",null,"",null,null,null,null,null,"",null,"",null,"",null,"",null,"",""]
[null,null,null,"",null,"",null,null,null,null,null,"",null,"",null,"",null,"",null,"",""]
[null,null,null,"",null,"",null,null,null,null,null,"",null,"",null,"",null,"",null,"",""]
[null,null,null,"",null,"",null,null,null,null,null,"",null,"",null,"",null,"",null,"",""]
[null,null,null,"",null,"",null,null,null,null,null,"",null,"",null,"",null,"",null,"",""]
[null,null,null,"",null,"",null,null,null,null,null,"",null,"",null,"",null,"",null,"",""]
[null,null,null,"",null,"",null,null,null,null,null,"",null,"",null,"",null,"",null,"",""]
[null,null,null,"",null,"",null,null,null,null,null,"",null,"",null,"",null,"",null,"",""]
[null,null,null,"",null,"",null,null,null,null,null,"",null,"",null,"",null,"",null,"",""]
[null,null,null,"",null,"",null,null,null,null,null,"",null,"",null,"",null,"",null,"",""]
[null,null,null,"",null,"",null,null,null,null,null,"",null,"",null,"",null,"",null,"",""]
[null,null,null,"",null,"",null,null,null,null,null,"",null,"",null,"",null,"",null,"",""]
[null,null,null,"",null,{"$f":"IF(C907=\"\",\"\",IF($F$5<$F$4,D907-C907,D907+C907))","v":""},null,null,null,null,null,{"$f":"IF(OR($D907=\"\",$D907=\"Exemption\",L$4=0),\"\",ROUND($C907*$F$2/9*L$5/2000*L$4,2))","v":""},null,{"$f":"IF(OR($D907=\"\",$D907=\"Exemption\",N$4=0),\"\",ROUND($C907*$F$2/9*N$5/2000*N$4,2))","v":""},null,{"$f":"IF(OR($D907=\"\",$D907=\"Exemption\",P$4=0),\"\",ROUND($C907*$F$2/9*P$5/2000*P$4,2))","v":""},null,{"$f":"IF(OR($D907=\"\",$D907=\"Exemption\",R$4=0),\"\",ROUND($C907*$F$2/9*R$5/2000*R$4,2))","v":""},null,{"$f":"IF(OR($D907=\"\",$D907=\"Exemption\",T$4=0),\"\",ROUND($C907*$F$2/9*T$5/2000*T$4,2))","v":""},""]
[null,null,null,{"$f":"+IF(A908=\"\",\"\",IF($F$5<$F$4,D907-(A908-A907),D907+(A908-A907)))","v":""},null,"",null,null,null,null,null,"",null,"",null,"",null,"",null,"",""]
[null,null,null,"",null,"",null,null,null,null,null,"",null,"",null,"",null,"",null,"",""]
[null,null,null,"",null,"",null,null,null,null,null,"",null,"",null,"",null,"",null,"",""]
[null,null,null,"",null,"",null,null,null,null,null,"",null,"",null,"",null,"",null,"",""]
[null,null,null,"",null,"",null,null,null,null,null,"",null,"",null,"",null,"",null,"",""]
[null,null,null,"",null,"",null,null,null,null,null,"",null,"",null,"",null,"",null,"",""]
[null,null,null,"",null,"",null,null,null,null,null,"",null,"",null,"",null,"",null,"",""]
[null,null,null,"",null,"",null,null,null,null,null,"",null,"",null,"",null,"",null,"",""]
[null,null,null,"",null,"",null,null,null,null,null,"",null,"",null,"",null,"",null,"",""]
[null,null,null,"",null,"",null,null,null,null,null,"",null,"",null,"",null,"",null,"",""]
[null,null,null,"",null,"",null,null,null,null,null,"",null,"",null,"",null,"",null,"",""]
[null,null,null,"",null,"",null,null,null,null,null,"",null,"",null,"",null,"",null,"",""]
[null,null,null,"",null,"",null,null,null,null,null,"",null,"",null,"",null,"",null,"",""]
[null,null,null,"",null,"",null,null,null,null,null,"",null,"",null,"",null,"",null,"",""]
[null,null,null,"",null,"",null,null,null,null,null,"",null,"",null,"",null,"",null,"",""]
[null,null,null,"",null,"",null,null,null,null,null,"",null,"",null,"",null,"",null,"",""]
[null,null,null,"",null,"",null,null,null,null,null,"",null,"",null,"",null,"",null,"",""]
[null,null,null,"",null,"",null,null,null,null,null,"",null,"",null,"",null,"",null,"",""]
[null,null,null,"",null,"",null,null,null,null,null,"",null,"",null,"",null,"",null,"",""]
[null,null,null,"",null,"",null,null,null,null,null,"",null,"",null,"",null,"",null,"",""]
[null,null,null,"",null,"",null,null,null,null,null,"",null,"",null,"",null,"",null,"",""]
[null,null,null,"",null,"",null,null,null,null,null,"",null,"",null,"",null,"",null,"",""]
[null,null,null,"",null,"",null,null,null,null,null,"",null,"",null,"",null,"",null,"",""]
[null,null,null,"",null,"",null,null,null,null,null,"",null,"",null,"",null,"",null,"",""]
[null,null,null,"",null,"",null,null,null,null,null,"",null,"",null,"",null,"",null,"",""]
[null,null,null,"",null,"",null,null,null,null,null,"",null,"",null,"",null,"",null,"",""]
[null,null,null,"",null,"",null,null,null,null,null,"",null,"",null,"",null,"",null,"",""]
[null,null,null,"",null,"",null,null,null,null,null,"",null,"",null,"",null,"",null,"",{"$f":"IF($J935=\"\",\"\",ROUND((($J935-1)*SUM(P935,R935,T935,N935,L935)),2))","v":""}]
[null,null,null,"",null,"",null,null,null,null,null,"",null,"",null,"",null,"",null,"",""]
[null,null,null,"",null,"",null,null,null,null,null,"",null,"",null,"",null,"",null,"",""]
[null,null,null,"",null,"",null,null,null,null,null,"",null,"",null,"",null,"",null,"",""]
[null,null,null,"",null,"",null,null,null,null,null,"",null,"",null,"",null,"",null,"",""]
[null,null,null,"",null,"",null,null,null,null,null,"",null,"",null,"",null,"",null,"",""]
[null,null,null,"",null,"",null,null,null,null,null,"",null,"",null,"",null,"",null,"",""]
[null,null,null,"",null,"",null,null,null,null,null,"",null,"",null,"",null,"",null,"",""]
[null,null,null,"",null,"",null,null,null,null,null,"",null,"",null,"",null,"",null,"",""]
[null,null,null,"",null,"",null,null,null,null,null,"",null,"",null,"",null,"",null,"",""]
[null,null,null,"",null,"",null,null,null,null,null,"",null,"",null,"",null,"",null,"",""]
[null,null,null,"",null,"",null,null,null,null,null,"",null,"",null,"",null,"",null,"",""]
[null,null,null,"",null,"",null,null,null,null,null,"",null,"",null,"",null,"",null,"",""]
[null,null,null,"",null,"",null,null,null,null,null,"",null,"",null,"",null,"",null,"",""]
[null,null,null,"",null,"",null,null,null,null,null,"",null,"",null,"",null,"",null,"",""]
[null,null,null,"",null,"",null,null,null,null,null,"",null,"",null,"",null,"",null,"",""]
[null,null,null,"",null,"",null,null,null,null,null,"",null,"",null,"",null,"",null,"",""]
[null,null,null,"",null,"",null,null,null,null,null,"",null,"",null,"",null,"",null,"",""]
[null,null,null,"",null,"",null,null,null,null,null,"",null,"",null,"",null,"",null,"",""]
[null,null,null,"",null,"",null,null,null,null,null,"",null,"",null,"",null,"",null,"",""]
[null,null,null,"",null,"",null,null,null,null,null,"",null,"",null,"",null,"",null,"",""]
[null,null,null,"",null,"",null,null,null,null,null,"",null,"",null,"",null,"",null,"",""]
[null,null,null,"",null,"",null,null,null,null,null,"",null,"",null,"",null,"",null,"",""]
[null,null,null,"",null,"",null,null,null,null,null,"",null,"",null,"",null,"",null,"",""]
[null,null,null,"",null,"",null,null,null,null,null,"",null,"",null,"",null,"",null,"",""]
[null,null,null,"",null,"",null,null,null,null,null,"",null,"",null,"",null,"",null,"",""]
[null,null,null,"",null,"",null,null,null,null,null,"",null,"",null,"",null,"",null,"",""]
[null,null,null,"",null,"",null,null,null,null,null,"",null,"",null,"",null,"",null,"",""]
[null,null,null,"",null,"",null,null,null,null,null,"",null,"",null,"",null,"",null,"",""]
[null,null,null,"",null,"",null,null,null,null,null,"",null,"",null,"",null,"",null,"",""]
[null,null,null,"",null,"",null,null,null,null,null,"",null,"",null,"",null,"",null,"",""]
[null,null,null,"",null,"",null,null,null,null,null,"",null,"",null,"",null,"",null,"",""]
[null,null,null,"",null,"",null,null,null,null,null,"",null,"",null,"",null,"",null,"",""]
[null,null,null,"",null,"",null,null,null,null,null,"",null,"",null,"",null,"",null,"",""]
[null,null,null,"",null,"",null,null,null,null,null,"",null,"",null,"",null,"",null,"",""]
[null,null,null,"",null,"",null,null,null,null,null,"",null,"",null,"",null,"",null,"",""]
[null,null,null,"",null,{"$f":"IF(C971=\"\",\"\",IF($F$5<$F$4,D971-C971,D971+C971))","v":""},null,null,null,null,null,{"$f":"IF(OR($D971=\"\",$D971=\"Exemption\",L$4=0),\"\",ROUND($C971*$F$2/9*L$5/2000*L$4,2))","v":""},null,{"$f":"IF(OR($D971=\"\",$D971=\"Exemption\",N$4=0),\"\",ROUND($C971*$F$2/9*N$5/2000*N$4,2))","v":""},null,{"$f":"IF(OR($D971=\"\",$D971=\"Exemption\",P$4=0),\"\",ROUND($C971*$F$2/9*P$5/2000*P$4,2))","v":""},null,{"$f":"IF(OR($D971=\"\",$D971=\"Exemption\",R$4=0),\"\",ROUND($C971*$F$2/9*R$5/2000*R$4,2))","v":""},null,{"$f":"IF(OR($D971=\"\",$D971=\"Exemption\",T$4=0),\"\",ROUND($C971*$F$2/9*T$5/2000*T$4,2))","v":""},""]
[null,null,null,{"$f":"+IF(A972=\"\",\"\",IF($F$5<$F$4,D971-(A972-A971),D971+(A972-A971)))","v":""},null,"",null,null,null,null,null,"",null,"",null,"",null,"",null,"",""]
[null,null,null,"",null,"",null,null,null,null,null,"",null,"",null,"",null,"",null,"",""]
[null,null,null,"",null,"",null,null,null,null,null,"",null,"",null,"",null,"",null,"",""]
[null,null,null,"",null,"",null,null,null,null,null,"",null,"",null,"",null,"",null,"",""]
[null,null,null,"",null,"",null,null,null,null,null,"",null,"",null,"",null,"",null,"",""]
[null,null,null,"",null,"",null,null,null,null,null,"",null,"",null,"",null,"",null,"",""]
[null,null,null,"",null,"",null,null,null,null,null,"",null,"",null,"",null,"",null,"",""]
[null,null,null,"",null,"",null,null,null,null,null,"",null,"",null,"",null,"",null,"",""]
[null,null,null,"",null,"",null,null,null,null,null,"",null,"",null,"",null,"",null,"",""]
[null,null,null,"",null,"",null,null,null,null,null,"",null,"",null,"",null,"",null,"",""]
[null,null,null,"",null,"",null,null,null,null,null,"",null,"",null,"",null,"",null,"",""]
[null,null,null,"",null,"",null,null,null,null,null,"",null,"",null,"",null,"",null,"",""]
[null,null,null,"",null,"",null,null,null,null,null,"",null,"",null,"",null,"",null,"",""]
[null,null,null,"",null,"",null,null,null,null,null,"",null,"",null,"",null,"",null,"",""]
[null,null,null,"",null,"",null,null,null,null,null,"",null,"",null,"",null,"",null,"",""]
[null,null,null,"",null,"",null,null,null,null,null,"",null,"",null,"",null,"",null,"",""]
[null,null,null,"",null,"",null,null,null,null,null,"",null,"",null,"",null,"",null,"",""]
[null,null,null,"",null,"",null,null,null,null,null,"",null,"",null,"",null,"",null,"",""]
[null,null,null,"",null,"",null,null,null,null,null,"",null,"",null,"",null,"",null,"",""]
[null,null,null,"",null,"",null,null,null,null,null,"",null,"",null,"",null,"",null,"",""]
[null,null,null,"",null,"",null,null,null,null,null,"",null,"",null,"",null,"",null,"",""]
[null,null,null,"",null,"",null,null,null,null,null,"",null,"",null,"",null,"",null,"",""]
[null,null,null,"",null,"",null,null,null,null,null,"",null,"",null,"",null,"",null,"",""]
[null,null,null,"",null,"",null,null,null,null,null,"",null,"",null,"",null,"",null,"",""]
[null,null,null,"",null,"",null,null,null,null,null,"",null,"",null,"",null,"",null,"",""]
[null,null,null,"",null,"",null,null,null,null,null,"",null,"",null,"",null,"",null,"",""]
[null,null,null,"",null,"",null,null,null,null,null,"",null,"",null,"",null,"",null,"",""]
[null,null,null,"",null,"",null,null,null,null,null,"",null,"",null,"",null,"",null,"",{"$f":"IF($J999=\"\",\"\",ROUND((($J999-1)*SUM(P999,R999,T999,N999,L999)),2))","v":""}]
[null,null,null,"",null,"",null,null,null,null,null,"",null,"",null,"",null,"",null,"",""]